﻿Department,Entity, Transaction Date, Expense Type, Expense Area, Supplier Name,Transaction number, Amount
FCDO,CSC,02/12/2022,Tuition Fee,Award Costs,Green Templeton College,PIN060686,18000
FCDO,CSC,02/12/2022,Tuition Fee,Award Costs,University of Newcastle upon Tyne,PIN060885,18000
FCDO,CSC,02/12/2022,Tuition Fee,Award Costs,Cardiff University,PIN060886,72000
FCDO,CSC,02/12/2022,Tuition Fee,Award Costs,University of Newcastle upon Tyne,PIN060887,18000
FCDO,CSC,02/12/2022,Tuition Fee,Award Costs,University of Newcastle upon Tyne,PIN060888,18000
FCDO,CSC,02/12/2022,Tuition Fee,Award Costs,University of Newcastle upon Tyne,PIN060889,22500
FCDO,CSC,02/12/2022,Tuition Fee,Award Costs,University of Newcastle upon Tyne,PIN060890,16320
FCDO,CSC,02/12/2022,Tuition Fee,Award Costs,University of Newcastle upon Tyne,PIN060891,22500
FCDO,CSC,02/12/2022,Tuition Fee,Award Costs,University of Newcastle upon Tyne,PIN060892,22500
FCDO,CSC,02/12/2022,Tuition Fee,Award Costs,University of Newcastle upon Tyne,PIN060893,22500
FCDO,CSC,02/12/2022,Tuition Fee,Award Costs,University of Newcastle upon Tyne,PIN060894,22500
FCDO,CSC,02/12/2022,Tuition Fee,Award Costs,University of Manchester,PIN060895,28800
FCDO,CSC,02/12/2022,Tuition Fee,Award Costs,University of Manchester,PIN060896,86400
FCDO,CSC,02/12/2022,Tuition Fee,Award Costs,University of Manchester,PIN060897,108000
FCDO,CSC,02/12/2022,Tuition Fee,Award Costs,University of Manchester,PIN060898,7200
FCDO,CSC,02/12/2022,Tuition Fee,Award Costs,University of Aberdeen,PIN060899,6120
FCDO,CSC,02/12/2022,Tuition Fee,Award Costs,University of Aberdeen,PIN060900,1020
FCDO,CSC,02/12/2022,Tuition Fee,Award Costs,Cardiff University,PIN060901,6280
FCDO,CSC,02/12/2022,Tuition Fee,Award Costs,Queens University Belfast,PIN060902,32940
FCDO,CSC,02/12/2022,Tuition Fee,Award Costs,The University of Edinburgh,PIN060903,8550
FCDO,CSC,02/12/2022,Tuition Fee,Award Costs,The University of Edinburgh,PIN060904,6035
FCDO,CSC,02/12/2022,Tuition Fee,Award Costs,The University of Edinburgh,PIN060905,4800
FCDO,CSC,02/12/2022,Tuition Fee,Award Costs,The University of Edinburgh,PIN060906,8550
FCDO,CSC,02/12/2022,Tuition Fee,Award Costs,The University of Edinburgh,PIN060907,8550
FCDO,CSC,02/12/2022,Tuition Fee,Award Costs,The University of Edinburgh,PIN060908,4800
FCDO,CSC,02/12/2022,Scholar Engagement,Programme Costs,The University of Birmingham,PIN060909,6948
FCDO,CSC,02/12/2022,Alumni Engagement,Programme Costs,Pau Creative Ltd.,PIN060910,1728
FCDO,CSC,02/12/2022,Scholar Engagement,Programme Costs,Pau Creative Ltd.,PIN060911,144
FCDO,CSC,02/12/2022,Alumni Engagement,Programme Costs,TFW Printers,PIN060912,1404
FCDO,CSC,02/12/2022,Engagement,Programme Costs,Coby Phillips,PIN060913,568.08
FCDO,CSC,02/12/2022,Alumni Engagement,Programme Costs,Pau Creative Ltd.,PIN060914,336
FCDO,CSC,02/12/2022,Scholar Engagement,Programme Costs,Maggie Goncalves,PIN060916,184.5
FCDO,CSC,02/12/2022,Alumni Engagement,Programme Costs,TFW Printers,PIN060917,600
FCDO,CSC,02/12/2022,Consulting Fees,System Development,J P Embleton Limited.,PIN060918,840
FCDO,CSC,16/12/2022,Tuition Fee,Award Costs,Bangor University,PIN061022,4902
FCDO,CSC,09/12/2022,Scholar Engagement,Programme Costs,Cumberland Lodge Enterprises Limited,PIN060942,1892
FCDO,CSC,23/12/2022,Tuition Fee,Award Costs,The University of Edinburgh,PIN061956,6035
FCDO,CSC,23/12/2022,Tuition Fee,Award Costs,The University of Edinburgh,PIN061955,6035
FCDO,CSC,23/12/2022,Tuition Fee,Award Costs,The University of Edinburgh,PIN061954,7200
FCDO,CSC,23/12/2022,Tuition Fee,Award Costs,The University of Edinburgh,PIN061948,6035
FCDO,CSC,23/12/2022,Tuition Fee,Award Costs,The University of Edinburgh,PIN061946,6035
FCDO,CSC,23/12/2022,Tuition Fee,Award Costs,The University of Edinburgh,PIN061936,6035
FCDO,CSC,23/12/2022,Tuition Fee,Award Costs,The University of Edinburgh,PIN061984,6035
FCDO,CSC,23/12/2022,Tuition Fee,Award Costs,The University of Edinburgh,PIN061978,1010
FCDO,CSC,23/12/2022,Tuition Fee,Award Costs,The University of Edinburgh,PIN061965,5400
FCDO,CSC,23/12/2022,Tuition Fee,Award Costs,The University of Edinburgh,PIN061951,5700
FCDO,CSC,23/12/2022,Tuition Fee,Award Costs,The University of Edinburgh,PIN061950,5040
FCDO,CSC,23/12/2022,Tuition Fee,Award Costs,The University of Edinburgh,PIN061947,5400
FCDO,CSC,23/12/2022,Tuition Fee,Award Costs,The University of Edinburgh,PIN061945,7200
FCDO,CSC,23/12/2022,Tuition Fee,Award Costs,The University of Edinburgh,PIN061943,6035
FCDO,CSC,23/12/2022,Tuition Fee,Award Costs,The University of Edinburgh,PIN061941,5800
FCDO,CSC,23/12/2022,Tuition Fee,Award Costs,The University of Edinburgh,PIN061933,6035
FCDO,CSC,23/12/2022,Tuition Fee,Award Costs,The University of Edinburgh,PIN061931,6035
FCDO,CSC,23/12/2022,Tuition Fee,Award Costs,The University of Edinburgh,PIN061927,6035
FCDO,CSC,23/12/2022,Tuition Fee,Award Costs,The University of Edinburgh,PIN061925,8550
FCDO,CSC,16/12/2022,Tuition Fee,Award Costs,The University of Edinburgh,PIN060995,4320
FCDO,CSC,16/12/2022,Tuition Fee,Award Costs,The University of Edinburgh,PIN060993,6035
FCDO,CSC,23/12/2022,Tuition Fee,Award Costs,The University of Edinburgh,PIN061972,6035
FCDO,CSC,23/12/2022,Tuition Fee,Award Costs,The University of Edinburgh,PIN061952,6035
FCDO,CSC,23/12/2022,Tuition Fee,Award Costs,The University of Edinburgh,PIN061939,6035
FCDO,CSC,23/12/2022,Tuition Fee,Award Costs,The University of Edinburgh,PIN061932,6035
FCDO,CSC,23/12/2022,Tuition Fee,Award Costs,The University of Edinburgh,PIN061937,8550
FCDO,CSC,23/12/2022,Tuition Fee,Award Costs,The University of Edinburgh,PIN061944,6035
FCDO,CSC,23/12/2022,Tuition Fee,Award Costs,The University of Edinburgh,PIN061930,7200
FCDO,CSC,16/12/2022,Tuition Fee,Award Costs,The University of Edinburgh,PIN060997,7200
FCDO,CSC,23/12/2022,Tuition Fee,Award Costs,The University of Edinburgh,PIN061970,8550
FCDO,CSC,23/12/2022,Tuition Fee,Award Costs,The University of Edinburgh,PIN061983,6035
FCDO,CSC,23/12/2022,Tuition Fee,Award Costs,The University of Edinburgh,PIN061953,6035
FCDO,CSC,16/12/2022,Tuition Fee,Award Costs,Linacre College Oxford,PIN061048,22500
FCDO,CSC,23/12/2022,Tuition Fee,Award Costs,The University of Edinburgh,PIN061966,1010
FCDO,CSC,23/12/2022,Tuition Fee,Award Costs,The University of Edinburgh,PIN061935,1010
FCDO,CSC,23/12/2022,Tuition Fee,Award Costs,The University of Edinburgh,PIN061928,1010
FCDO,CSC,23/12/2022,Tuition Fee,Award Costs,The University of Edinburgh,PIN061942,7200
FCDO,CSC,16/12/2022,Tuition Fee,Award Costs,The University of Edinburgh,PIN060996,6035
FCDO,CSC,16/12/2022,Tuition Fee,Award Costs,University of London,PIN061053,4890
FCDO,CSC,16/12/2022,Tuition Fee,Award Costs,University of Chester,PIN061029,11950
FCDO,CSC,16/12/2022,Tuition Fee,Award Costs,University of Chester,PIN061028,10950
FCDO,CSC,16/12/2022,Tuition Fee,Award Costs,University of Chester,PIN061027,11950
FCDO,CSC,16/12/2022,Tuition Fee,Award Costs,University of Chester,PIN061026,11950
FCDO,CSC,16/12/2022,Tuition Fee,Award Costs,University of Chester,PIN061025,11950
FCDO,CSC,16/12/2022,Tuition Fee,Award Costs,University of Chester,PIN061024,11950
FCDO,CSC,16/12/2022,Tuition Fee,Award Costs,University of Chester,PIN061023,11950
FCDO,CSC,16/12/2022,Tuition Fee,Award Costs,St Hughs College Oxford,PIN061005,22500
FCDO,CSC,16/12/2022,Tuition Fee,Award Costs,University of London,PIN061055,205480
FCDO,CSC,16/12/2022,Tuition Fee,Award Costs,University of London,PIN061054,60534
FCDO,CSC,23/12/2022,Tuition Fee,Award Costs,The University of Edinburgh,PIN061949,6035
FCDO,CSC,23/12/2022,Tuition Fee,Award Costs,The University of Edinburgh,PIN061929,8550
FCDO,CSC,23/12/2022,Tuition Fee,Award Costs,The University of Edinburgh,PIN061971,8550
FCDO,CSC,23/12/2022,Tuition Fee,Award Costs,The University of Edinburgh,PIN061934,8550
FCDO,CSC,16/12/2022,Tuition Fee,Award Costs,The University of Edinburgh,PIN060994,8550
FCDO,CSC,16/12/2022,Tuition Fee,Award Costs,The University of Salford,PIN061003,2940
FCDO,CSC,16/12/2022,Tuition Fee,Award Costs,The University of Salford,PIN061002,2940
FCDO,CSC,16/12/2022,Tuition Fee,Award Costs,The University of Salford,PIN061001,2940
FCDO,CSC,16/12/2022,Tuition Fee,Award Costs,The University of Salford,PIN061000,2940
FCDO,CSC,16/12/2022,Tuition Fee,Award Costs,The University of Salford,PIN060999,2940
FCDO,CSC,16/12/2022,Tuition Fee,Award Costs,The University of Salford,PIN060998,2940
FCDO,CSC,16/12/2022,Tuition Fee,Award Costs,The University of Leeds,PIN061004,16200
FCDO,CSC,23/12/2022,Tuition Fee,Award Costs,University of Stirling,PIN062002,4000
FCDO,CSC,23/12/2022,Tuition Fee,Award Costs,University of Stirling,PIN062001,3750
FCDO,CSC,23/12/2022,Tuition Fee,Award Costs,University of Stirling,PIN061999,4000
FCDO,CSC,23/12/2022,Tuition Fee,Award Costs,University of Stirling,PIN061998,4000
FCDO,CSC,23/12/2022,Tuition Fee,Award Costs,University of Stirling,PIN061997,3750
FCDO,CSC,23/12/2022,Tuition Fee,Award Costs,University of Stirling,PIN061996,4000
FCDO,CSC,23/12/2022,Tuition Fee,Award Costs,University of Stirling,PIN061995,4000
FCDO,CSC,23/12/2022,Tuition Fee,Award Costs,University of Stirling,PIN061994,4000
FCDO,CSC,23/12/2022,Tuition Fee,Award Costs,University of Stirling,PIN061993,3750
FCDO,CSC,23/12/2022,Tuition Fee,Award Costs,University of Stirling,PIN061992,3750
FCDO,CSC,23/12/2022,Tuition Fee,Award Costs,University of Stirling,PIN061991,3750
FCDO,CSC,23/12/2022,Tuition Fee,Award Costs,University of Stirling,PIN061990,3750
FCDO,CSC,23/12/2022,Tuition Fee,Award Costs,University of Stirling,PIN061989,4000
FCDO,CSC,23/12/2022,Tuition Fee,Award Costs,University of Stirling,PIN061988,4000
FCDO,CSC,23/12/2022,Tuition Fee,Award Costs,University of Stirling,PIN061987,3750
FCDO,CSC,23/12/2022,Tuition Fee,Award Costs,University of Stirling,PIN061986,4000
FCDO,CSC,23/12/2022,Tuition Fee,Award Costs,The University of Edinburgh,PIN061940,1010
FCDO,CSC,09/12/2022,Scholar Engagement,Programme Costs,Pronk Limited,PIN060936,4125
FCDO,CSC,23/12/2022,Award Support Costs,Award Costs,University of Liverpool,PIN062014,4000
FCDO,CSC,23/12/2022,Tuition Fee,Award Costs,University of Liverpool,PIN062014,18000
FCDO,CSC,16/12/2022,Alumni Engagement,Programme Costs,Pau Creative Ltd.,PIN061080,4008
FCDO,CSC,23/12/2022,Tuition Fee,Award Costs,Oriel College Oxford,PIN062003,18000
FCDO,CSC,16/12/2022,Tuition Fee,Award Costs,University of Chester,PIN061030,14950
FCDO,CSC,23/12/2022,Tuition Fee,Award Costs,The University of Edinburgh,PIN061982,1010
FCDO,CSC,16/12/2022,Scholar Travel,Award Costs,Coventry University,PIN061032,175.41
FCDO,CSC,16/12/2022,Scholar Allowances,Award Costs,Coventry University,PIN061032,24.82
FCDO,CSC,16/12/2022,Scholar Travel,Award Costs,Coventry University,PIN061032,5.1
FCDO,CSC,16/12/2022,Visa Costs,Award Costs,Coventry University,PIN061032,134.1
FCDO,CSC,16/12/2022,Scholar Allowances,Award Costs,Coventry University,PIN061032,225
FCDO,CSC,16/12/2022,Scholar Allowances,Award Costs,Coventry University,PIN061032,200
FCDO,CSC,23/12/2022,Visa Costs,Award Costs,University of Leicester,PIN062004,602.99
FCDO,CSC,23/12/2022,Tuition Fee,Award Costs,The University of Edinburgh,PIN061981,1010
FCDO,CSC,23/12/2022,Tuition Fee,Award Costs,The University of Edinburgh,PIN061980,1010
FCDO,CSC,23/12/2022,Tuition Fee,Award Costs,The University of Edinburgh,PIN061979,1010
FCDO,CSC,23/12/2022,Tuition Fee,Award Costs,The University of Edinburgh,PIN061977,5400
FCDO,CSC,23/12/2022,Tuition Fee,Award Costs,The University of Edinburgh,PIN061976,1010
FCDO,CSC,23/12/2022,Tuition Fee,Award Costs,The University of Edinburgh,PIN061975,6035
FCDO,CSC,23/12/2022,Tuition Fee,Award Costs,The University of Edinburgh,PIN061961,1010
FCDO,CSC,16/12/2022,Tuition Fee,Award Costs,University of Aberdeen,PIN061073,7000
FCDO,CSC,16/12/2022,Tuition Fee,Award Costs,University of Aberdeen,PIN061072,7140
FCDO,CSC,16/12/2022,Tuition Fee,Award Costs,University of Aberdeen,PIN061071,6120
FCDO,CSC,16/12/2022,Tuition Fee,Award Costs,University of Aberdeen,PIN061069,5100
FCDO,CSC,16/12/2022,Tuition Fee,Award Costs,University of Aberdeen,PIN061067,2040
FCDO,CSC,16/12/2022,Tuition Fee,Award Costs,University of Aberdeen,PIN061065,1020
FCDO,CSC,16/12/2022,Scholar Allowances,Award Costs,University of Bath,PIN061051,200
FCDO,CSC,16/12/2022,Scholar Allowances,Award Costs,University of Bath,PIN061051,225
FCDO,CSC,16/12/2022,Visa Costs,Award Costs,University of Bath,PIN061051,117
FCDO,CSC,16/12/2022,Tuition Fee,Award Costs,University of Bath,PIN061051,22500
FCDO,CSC,16/12/2022,Scholar Allowances,Award Costs,University of Bath,PIN061050,200
FCDO,CSC,16/12/2022,Scholar Allowances,Award Costs,University of Bath,PIN061050,225
FCDO,CSC,16/12/2022,Visa Costs,Award Costs,University of Bath,PIN061050,43
FCDO,CSC,16/12/2022,Tuition Fee,Award Costs,University of Bath,PIN061050,22500
FCDO,CSC,16/12/2022,Scholar Allowances,Award Costs,University of Bath,PIN061049,200
FCDO,CSC,16/12/2022,Scholar Allowances,Award Costs,University of Bath,PIN061049,225
FCDO,CSC,16/12/2022,Visa Costs,Award Costs,University of Bath,PIN061049,17
FCDO,CSC,16/12/2022,Tuition Fee,Award Costs,University of Bath,PIN061049,22500
FCDO,CSC,16/12/2022,Tuition Fee,Award Costs,University of Chester,PIN061031,11950
FCDO,CSC,16/12/2022,Visa Costs,Award Costs,BISHOP GROSSETESTE UNIVERSITY,PIN061052,106
FCDO,CSC,16/12/2022,Tuition Fee,Award Costs,BISHOP GROSSETESTE UNIVERSITY,PIN061052,14280
FCDO,CSC,16/12/2022,Tuition Fee,Award Costs,Loughborough University,PIN061008,18000
FCDO,CSC,16/12/2022,Tuition Fee,Award Costs,Loughborough University,PIN061007,18000
FCDO,CSC,16/12/2022,Tuition Fee,Award Costs,University of Exeter,PIN061013,17280
FCDO,CSC,16/12/2022,Tuition Fee,Award Costs,University of Exeter,PIN061012,16800
FCDO,CSC,16/12/2022,Tuition Fee,Award Costs,University of Exeter,PIN061011,20500
FCDO,CSC,16/12/2022,Tuition Fee,Award Costs,University of Exeter,PIN061010,14480
FCDO,CSC,23/12/2022,Tuition Fee,Award Costs,The University of Edinburgh,PIN062013,18000
FCDO,CSC,16/12/2022,Tuition Fee,Award Costs,BATH SPA UNIVERSITY,PIN061015,14540
FCDO,CSC,23/12/2022,Award Support Costs,Award Costs,Edinburgh Napier University,PIN062016,5000
FCDO,CSC,23/12/2022,Tuition Fee,Award Costs,Edinburgh Napier University,PIN062016,12684
FCDO,CSC,23/12/2022,Award Support Costs,Award Costs,University of Huddersfield,PIN061938,4000
FCDO,CSC,23/12/2022,Tuition Fee,Award Costs,University of Huddersfield,PIN061938,13600
FCDO,CSC,23/12/2022,Tuition Fee,Award Costs,The Cambridge Commonwealth Trust,PIN062030,22500
FCDO,CSC,23/12/2022,Tuition Fee,Award Costs,The Cambridge Commonwealth Trust,PIN062029,22500
FCDO,CSC,23/12/2022,Visa Costs,Award Costs,The University of Warwick,PIN062018,26.39
FCDO,CSC,23/12/2022,Scholar Allowances,Award Costs,The University of Warwick,PIN062018,44.99
FCDO,CSC,23/12/2022,Visa Costs,Award Costs,The University of Warwick,PIN062009,113.92
FCDO,CSC,23/12/2022,Visa Costs,Award Costs,The University of Warwick,PIN062008,113.55
FCDO,CSC,23/12/2022,Visa Costs,Award Costs,The University of Warwick,PIN062007,113.54
FCDO,CSC,23/12/2022,Visa Costs,Award Costs,The University of Warwick,PIN062006,113.54
FCDO,CSC,23/12/2022,Visa Costs,Award Costs,The University of Warwick,PIN062005,68.6
FCDO,CSC,16/12/2022,Scholar Allowances,Award Costs,Goldsmiths College,PIN061056,340
FCDO,CSC,16/12/2022,Scholar Allowances,Award Costs,Goldsmiths College,PIN061056,400
FCDO,CSC,16/12/2022,Visa Costs,Award Costs,Goldsmiths College,PIN061056,116.27
FCDO,CSC,16/12/2022,Scholar Allowances,Award Costs,Goldsmiths College,PIN061056,810.06
FCDO,CSC,16/12/2022,Scholar Travel,Award Costs,Goldsmiths College,PIN061056,810.06
FCDO,CSC,16/12/2022,Scholar Allowances,Award Costs,Lond Sch Hygiene & Tropical Me,PIN061021,825
FCDO,CSC,16/12/2022,Scholar Travel,Award Costs,Lond Sch Hygiene & Tropical Me,PIN061021,3249.51
FCDO,CSC,23/12/2022,Tuition Fee,Award Costs,The Cambridge Commonwealth Trust,PIN062038,22500
FCDO,CSC,23/12/2022,Tuition Fee,Award Costs,The Cambridge Commonwealth Trust,PIN062037,22500
FCDO,CSC,23/12/2022,Tuition Fee,Award Costs,The Cambridge Commonwealth Trust,PIN062036,22500
FCDO,CSC,23/12/2022,Tuition Fee,Award Costs,The Cambridge Commonwealth Trust,PIN062035,22500
FCDO,CSC,23/12/2022,Tuition Fee,Award Costs,The Cambridge Commonwealth Trust,PIN062034,22500
FCDO,CSC,23/12/2022,Tuition Fee,Award Costs,The Cambridge Commonwealth Trust,PIN062033,22500
FCDO,CSC,23/12/2022,Tuition Fee,Award Costs,The Cambridge Commonwealth Trust,PIN062032,22500
FCDO,CSC,23/12/2022,Tuition Fee,Award Costs,The Cambridge Commonwealth Trust,PIN062031,22500
FCDO,CSC,23/12/2022,Tuition Fee,Award Costs,The Cambridge Commonwealth Trust,PIN062028,18000
FCDO,CSC,23/12/2022,Tuition Fee,Award Costs,The Cambridge Commonwealth Trust,PIN062027,18000
FCDO,CSC,23/12/2022,Tuition Fee,Award Costs,The Cambridge Commonwealth Trust,PIN062026,18000
FCDO,CSC,23/12/2022,Tuition Fee,Award Costs,The Cambridge Commonwealth Trust,PIN062025,18000
FCDO,CSC,23/12/2022,Tuition Fee,Award Costs,The Cambridge Commonwealth Trust,PIN062024,18000
FCDO,CSC,23/12/2022,Tuition Fee,Award Costs,The Cambridge Commonwealth Trust,PIN062023,18000
FCDO,CSC,23/12/2022,Tuition Fee,Award Costs,The Cambridge Commonwealth Trust,PIN062022,18000
FCDO,CSC,23/12/2022,Tuition Fee,Award Costs,The Cambridge Commonwealth Trust,PIN062021,18000
FCDO,CSC,23/12/2022,Tuition Fee,Award Costs,The Cambridge Commonwealth Trust,PIN062020,18000
FCDO,CSC,23/12/2022,Tuition Fee,Award Costs,The Cambridge Commonwealth Trust,PIN062019,18000
FCDO,CSC,16/12/2022,Tuition Fee,Award Costs,Queens University Belfast,PIN061033,36400
FCDO,CSC,16/12/2022,Tuition Fee,Award Costs,The University of Edinburgh,PIN061006,18000
FCDO,CSC,09/12/2022,Engagement,Programme Costs,Coby Phillips,PIN060940,229.4
FCDO,CSC,23/12/2022,Tuition Fee,Award Costs,The University of Edinburgh,PIN061926,6850
FCDO,CSC,16/12/2022,Visa Costs,Award Costs,University of Hull,PIN061047,210.07
FCDO,CSC,16/12/2022,Scholar Allowances,Award Costs,Lond Sch Hygiene & Tropical Me,PIN061020,225
FCDO,CSC,16/12/2022,Scholar Allowances,Award Costs,Lond Sch Hygiene & Tropical Me,PIN061020,200
FCDO,CSC,16/12/2022,Scholar Travel,Award Costs,Lond Sch Hygiene & Tropical Me,PIN061020,659.15
FCDO,CSC,16/12/2022,Scholar Allowances,Award Costs,Lond Sch Hygiene & Tropical Me,PIN061019,225
FCDO,CSC,16/12/2022,Scholar Allowances,Award Costs,Lond Sch Hygiene & Tropical Me,PIN061019,200
FCDO,CSC,16/12/2022,Scholar Travel,Award Costs,Lond Sch Hygiene & Tropical Me,PIN061019,510.87
FCDO,CSC,16/12/2022,Scholar Allowances,Award Costs,Lond Sch Hygiene & Tropical Me,PIN061018,225
FCDO,CSC,16/12/2022,Scholar Allowances,Award Costs,Lond Sch Hygiene & Tropical Me,PIN061018,200
FCDO,CSC,16/12/2022,Scholar Allowances,Award Costs,Lond Sch Hygiene & Tropical Me,PIN061018,200
FCDO,CSC,16/12/2022,Scholar Travel,Award Costs,Lond Sch Hygiene & Tropical Me,PIN061018,473.36
FCDO,CSC,16/12/2022,Scholar Allowances,Award Costs,Lond Sch Hygiene & Tropical Me,PIN061017,225
FCDO,CSC,16/12/2022,Scholar Allowances,Award Costs,Lond Sch Hygiene & Tropical Me,PIN061017,200
FCDO,CSC,16/12/2022,Tuition Fee,Award Costs,Lond Sch Hygiene & Tropical Me,PIN061017,22500
FCDO,CSC,16/12/2022,Scholar Allowances,Award Costs,Lond Sch Hygiene & Tropical Me,PIN061016,225
FCDO,CSC,16/12/2022,Scholar Allowances,Award Costs,Lond Sch Hygiene & Tropical Me,PIN061016,200
FCDO,CSC,16/12/2022,Tuition Fee,Award Costs,Lond Sch Hygiene & Tropical Me,PIN061016,22500
FCDO,CSC,16/12/2022,Tuition Fee,Award Costs,University of Exeter,PIN061014,18000
FCDO,CSC,16/12/2022,Tuition Fee,Award Costs,University of Southampton,PIN061009,18000
FCDO,CSC,23/12/2022,Tuition Fee,Award Costs,The University of Edinburgh,PIN061960,5400
FCDO,CSC,16/12/2022,Secretariat Service Provision,Programme Costs,University of West London,PIN061076,330
FCDO,CSC,16/12/2022,Scholar Allowances,Award Costs,University of Oxford,PIN061070,225
FCDO,CSC,16/12/2022,Scholar Allowances,Award Costs,University of Oxford,PIN061070,200
FCDO,CSC,16/12/2022,Scholar Allowances,Award Costs,University of Oxford,PIN061070,429
FCDO,CSC,16/12/2022,Award Support Costs,Award Costs,Kings College London,PIN061066,5000
FCDO,CSC,16/12/2022,Tuition Fee,Award Costs,The Open University,PIN061063,186.78
FCDO,CSC,16/12/2022,Tuition Fee,Award Costs,The Open University,PIN061062,186.78
FCDO,CSC,16/12/2022,Tuition Fee,Award Costs,The Open University,PIN061061,186.78
FCDO,CSC,16/12/2022,Tuition Fee,Award Costs,The Open University,PIN061060,186.78
FCDO,CSC,16/12/2022,Tuition Fee,Award Costs,The Open University,PIN061059,186.78
FCDO,CSC,16/12/2022,Tuition Fee,Award Costs,The Open University,PIN061058,186.78
FCDO,CSC,16/12/2022,Tuition Fee,Award Costs,The Open University,PIN061057,4150
FCDO,CSC,16/12/2022,Tuition Fee,Award Costs,University of Manchester,PIN061046,18000
FCDO,CSC,16/12/2022,Tuition Fee,Award Costs,University of Manchester,PIN061045,18000
FCDO,CSC,16/12/2022,Tuition Fee,Award Costs,University of Manchester,PIN061044,18000
FCDO,CSC,16/12/2022,Tuition Fee,Award Costs,University of Manchester,PIN061043,18000
FCDO,CSC,16/12/2022,Tuition Fee,Award Costs,University of Manchester,PIN061042,18000
FCDO,CSC,16/12/2022,Tuition Fee,Award Costs,University of Manchester,PIN061041,18000
FCDO,CSC,16/12/2022,Tuition Fee,Award Costs,University of Manchester,PIN061040,15200
FCDO,CSC,16/12/2022,Tuition Fee,Award Costs,University of Manchester,PIN061039,18000
FCDO,CSC,16/12/2022,Tuition Fee,Award Costs,University of Manchester,PIN061038,18000
FCDO,CSC,16/12/2022,Tuition Fee,Award Costs,University of Manchester,PIN061037,18000
FCDO,CSC,16/12/2022,Tuition Fee,Award Costs,University of Manchester,PIN061036,18000
FCDO,CSC,16/12/2022,Tuition Fee,Award Costs,University of Manchester,PIN061035,18000
FCDO,CSC,16/12/2022,Tuition Fee,Award Costs,University of Manchester,PIN061034,18000
FCDO,CSC,23/12/2022,Tuition Fee,Award Costs,The University of Edinburgh,PIN061964,2015
FCDO,CSC,16/12/2022,Scholar Travel,Award Costs,University of Oxford,PIN061064,1485.9
FCDO,CSC,16/12/2022,Scholar Allowances,Award Costs,University of Oxford,PIN061064,340
FCDO,CSC,16/12/2022,Scholar Allowances,Award Costs,University of Oxford,PIN061064,400
FCDO,CSC,09/12/2022,Engagement,Programme Costs,Coby Phillips,PIN060941,220.92
FCDO,CSC,09/12/2022,Alumni Engagement,Programme Costs,TFW Printers,PIN060938,1716
FCDO,CSC,23/12/2022,Tuition Fee,Award Costs,The University of Edinburgh,PIN061985,354000
FCDO,CSC,16/12/2022,Visa Costs,Award Costs,Lond Sch Hygiene & Tropical Me,PIN061074,115.9
FCDO,CSC,09/12/2022,Miscellaneous,Admin Costs,Way With Words Group,PIN060939,222.15
FCDO,CSC,09/12/2022,Interview Costs,Programme Costs,Way With Words Group,PIN060937,533.23
FCDO,CSC,07/12/2022,Scholar Allowances,Award Costs,Scholar,PIN060922,2037.5
FCDO,CSC,07/12/2022,Scholar Allowances,Award Costs,Scholar,PIN060921,1122.5
FCDO,CSC,23/12/2022,Tuition Fee,Award Costs,The University of Edinburgh,PIN061974,6035
FCDO,CSC,23/12/2022,Tuition Fee,Award Costs,The University of Edinburgh,PIN061973,4800
FCDO,CSC,23/12/2022,Tuition Fee,Award Costs,The University of Edinburgh,PIN061969,6035
FCDO,CSC,23/12/2022,Tuition Fee,Award Costs,The University of Edinburgh,PIN061968,5400
FCDO,CSC,23/12/2022,Tuition Fee,Award Costs,The University of Edinburgh,PIN061967,5400
FCDO,CSC,23/12/2022,Tuition Fee,Award Costs,The University of Edinburgh,PIN061963,5400
FCDO,CSC,23/12/2022,Tuition Fee,Award Costs,The University of Edinburgh,PIN061962,4800
FCDO,CSC,23/12/2022,Tuition Fee,Award Costs,The University of Edinburgh,PIN061959,6035
FCDO,CSC,23/12/2022,Tuition Fee,Award Costs,The University of Edinburgh,PIN061958,5400
FCDO,CSC,16/12/2022,Tuition Fee,Award Costs,Leeds Beckett University,PIN061075,22400
FCDO,CSC,05/12/2022,Consulting Fees,System Development,J P Embleton Limited.,PIN060919,1260
FCDO,CSC,23/12/2022,Tuition Fee,Award Costs,The University of Edinburgh,PIN062012,2400
FCDO,CSC,20/12/2022,Scholar Stipend,Award Costs,Scholar,PIN061923,2472
FCDO,CSC,16/12/2022,Alumni Engagement,Programme Costs,Wordsmith,PIN061079,250
FCDO,CSC,09/12/2022,Scholar Allowances,Award Costs,Scholar,PIN060954,200
FCDO,CSC,09/12/2022,Scholar Allowances,Award Costs,Scholar,PIN060952,200
FCDO,CSC,09/12/2022,Scholar Allowances,Award Costs,Scholar,PIN060952,81.22
FCDO,CSC,09/12/2022,Scholar Allowances,Award Costs,Scholar,PIN060951,275
FCDO,CSC,09/12/2022,Scholar Stipend,Award Costs,Scholar,PIN060951,618
FCDO,CSC,09/12/2022,Scholar Allowances,Award Costs,Scholar,PIN060950,225.94
FCDO,CSC,09/12/2022,Scholar Stipend,Award Costs,Scholar,PIN060950,263.95
FCDO,CSC,09/12/2022,Scholar Allowances,Award Costs,Scholar,PIN060949,250
FCDO,CSC,09/12/2022,Scholar Stipend,Award Costs,Scholar,PIN060948,304.56
FCDO,CSC,09/12/2022,Scholar Allowances,Award Costs,Scholar,PIN060947,200
FCDO,CSC,09/12/2022,Scholar Stipend,Award Costs,Scholar,PIN060945,446.69
FCDO,CSC,09/12/2022,Scholar Stipend,Award Costs,Scholar,PIN060944,647.49
FCDO,CSC,09/12/2022,Scholar Stipend,Award Costs,Scholar,PIN060943,373.55
FCDO,CSC,09/12/2022,Scholar Allowances,Award Costs,Scholar,PIN060935,225
FCDO,CSC,09/12/2022,Scholar Allowances,Award Costs,Scholar,PIN060932,600
FCDO,CSC,09/12/2022,Scholar Allowances,Award Costs,Scholar,PIN060931,600
FCDO,CSC,23/12/2022,Tuition Fee,Award Costs,University of Aberdeen,PIN062017,8600
FCDO,CSC,09/12/2022,Visa Costs,Award Costs,Scholar,PIN060990,115
FCDO,CSC,09/12/2022,Visa Costs,Award Costs,Scholar,PIN060989,115
FCDO,CSC,09/12/2022,Visa Costs,Award Costs,Scholar,PIN060988,106
FCDO,CSC,09/12/2022,Visa Costs,Award Costs,Scholar,PIN060985,115
FCDO,CSC,09/12/2022,Visa Costs,Award Costs,Scholar,PIN060984,115
FCDO,CSC,09/12/2022,Visa Costs,Award Costs,Scholar,PIN060983,44
FCDO,CSC,09/12/2022,Visa Costs,Award Costs,Scholar,PIN060982,44
FCDO,CSC,09/12/2022,Visa Costs,Award Costs,Scholar,PIN060981,134
FCDO,CSC,09/12/2022,Visa Costs,Award Costs,Scholar,PIN060972,93
FCDO,CSC,09/12/2022,Visa Costs,Award Costs,Scholar,PIN060971,93
FCDO,CSC,09/12/2022,Visa Costs,Award Costs,Scholar,PIN060970,93
FCDO,CSC,09/12/2022,Visa Costs,Award Costs,Scholar,PIN060969,17
FCDO,CSC,09/12/2022,Visa Costs,Award Costs,Scholar,PIN060964,98
FCDO,CSC,09/12/2022,Visa Costs,Award Costs,Scholar,PIN060963,70
FCDO,CSC,07/12/2022,Scholar Allowances,Award Costs,Scholar,PIN060920,2035
FCDO,CSC,07/12/2022,Scholar Stipend,Award Costs,MasterCard Prepaid Management Services Ltd,PIN062046,2037.5
FCDO,CSC,07/12/2022,Bank Charges,Programme Costs,MasterCard Prepaid Management Services Ltd,PIN062046,20.38
FCDO,CSC,16/12/2022,Scholar Engagement,Programme Costs,Irene Costello,PIN061081,218.79
FCDO,CSC,20/12/2022,Scholar Advances,Award Costs,Scholar,PIN061922,680
FCDO,CSC,16/12/2022,Consulting Fees,System Development,J P Embleton Limited.,PIN061078,840
FCDO,CSC,12/12/2022,Visa Costs,Award Costs,MasterCard Prepaid Management Services Ltd,PIN062047,106
FCDO,CSC,12/12/2022,Visa Costs,Award Costs,MasterCard Prepaid Management Services Ltd,PIN062047,74
FCDO,CSC,12/12/2022,Visa Costs,Award Costs,MasterCard Prepaid Management Services Ltd,PIN062047,128
FCDO,CSC,12/12/2022,Visa Costs,Award Costs,MasterCard Prepaid Management Services Ltd,PIN062047,128
FCDO,CSC,12/12/2022,Visa Costs,Award Costs,MasterCard Prepaid Management Services Ltd,PIN062047,115
FCDO,CSC,12/12/2022,Visa Costs,Award Costs,MasterCard Prepaid Management Services Ltd,PIN062047,98
FCDO,CSC,12/12/2022,Visa Costs,Award Costs,MasterCard Prepaid Management Services Ltd,PIN062047,134
FCDO,CSC,12/12/2022,Visa Costs,Award Costs,MasterCard Prepaid Management Services Ltd,PIN062047,134
FCDO,CSC,12/12/2022,Visa Costs,Award Costs,MasterCard Prepaid Management Services Ltd,PIN062047,134
FCDO,CSC,12/12/2022,Visa Costs,Award Costs,MasterCard Prepaid Management Services Ltd,PIN062047,134
FCDO,CSC,12/12/2022,Visa Costs,Award Costs,MasterCard Prepaid Management Services Ltd,PIN062047,134
FCDO,CSC,12/12/2022,Visa Costs,Award Costs,MasterCard Prepaid Management Services Ltd,PIN062047,93
FCDO,CSC,12/12/2022,Visa Costs,Award Costs,MasterCard Prepaid Management Services Ltd,PIN062047,93
FCDO,CSC,12/12/2022,Visa Costs,Award Costs,MasterCard Prepaid Management Services Ltd,PIN062047,93
FCDO,CSC,12/12/2022,Visa Costs,Award Costs,MasterCard Prepaid Management Services Ltd,PIN062047,93
FCDO,CSC,12/12/2022,Visa Costs,Award Costs,MasterCard Prepaid Management Services Ltd,PIN062047,70
FCDO,CSC,12/12/2022,Visa Costs,Award Costs,MasterCard Prepaid Management Services Ltd,PIN062047,70
FCDO,CSC,12/12/2022,Bank Charges,Programme Costs,MasterCard Prepaid Management Services Ltd,PIN062047,18.31
FCDO,CSC,23/12/2022,Scholar Allowances,Award Costs,Scholar,PIN062015,600
FCDO,CSC,23/12/2022,Reimbursements,Award Costs,Scholar,PIN062011,85
FCDO,CSC,23/12/2022,Scholar Allowances,Award Costs,Scholar,PIN062000,600
FCDO,CSC,23/12/2022,Scholar Allowances,Award Costs,Scholar,PIN061957,53.48
FCDO,CSC,23/12/2022,Visa Costs,Award Costs,Scholar,PIN061957,372.68
FCDO,CSC,23/12/2022,Scholar Advances,Award Costs,Scholar,PIN062042,680
FCDO,CSC,23/12/2022,Scholar Stipend,Award Costs,Scholar,PIN062041,2472
FCDO,CSC,23/12/2022,Scholar Allowances,Award Costs,Scholar,PIN062040,250
FCDO,CSC,20/12/2022,Scholar Allowances,Award Costs,Scholar,PIN061919,275
FCDO,CSC,20/12/2022,Scholar Allowances,Award Costs,Scholar,PIN061910,1122.5
FCDO,CSC,20/12/2022,Scholar Allowances,Award Costs,Scholar,PIN061909,2037.5
FCDO,CSC,20/12/2022,Scholar Allowances,Award Costs,Scholar,PIN061908,1500
FCDO,CSC,20/12/2022,Scholar Allowances,Award Costs,Scholar,PIN061907,1940
FCDO,CSC,20/12/2022,Scholar Allowances,Award Costs,Scholar,PIN061906,1450
FCDO,CSC,20/12/2022,Scholar Allowances,Award Costs,Scholar,PIN061905,157
FCDO,CSC,20/12/2022,Scholar Allowances,Award Costs,Scholar,PIN061904,108
FCDO,CSC,20/12/2022,Scholar Allowances,Award Costs,Scholar,PIN061903,106
FCDO,CSC,20/12/2022,Scholar Allowances,Award Costs,Scholar,PIN061898,157
FCDO,CSC,20/12/2022,Scholar Allowances,Award Costs,Scholar,PIN061897,211
FCDO,CSC,20/12/2022,Scholar Allowances,Award Costs,Scholar,PIN061896,106
FCDO,CSC,20/12/2022,Scholar Allowances,Award Costs,Scholar,PIN061893,106
FCDO,CSC,20/12/2022,Scholar Allowances,Award Costs,Scholar,PIN061890,108
FCDO,CSC,20/12/2022,Scholar Allowances,Award Costs,Scholar,PIN061889,108
FCDO,CSC,20/12/2022,Scholar Allowances,Award Costs,Scholar,PIN061888,106
FCDO,CSC,20/12/2022,Scholar Allowances,Award Costs,Scholar,PIN061885,211
FCDO,CSC,20/12/2022,Scholar Allowances,Award Costs,Scholar,PIN061884,76
FCDO,CSC,20/12/2022,Scholar Allowances,Award Costs,Scholar,PIN061881,211
FCDO,CSC,20/12/2022,Scholar Allowances,Award Costs,Scholar,PIN061880,157
FCDO,CSC,20/12/2022,Scholar Allowances,Award Costs,Scholar,PIN061879,211
FCDO,CSC,20/12/2022,Scholar Allowances,Award Costs,Scholar,PIN061878,76
FCDO,CSC,20/12/2022,Scholar Allowances,Award Costs,Scholar,PIN061876,157
FCDO,CSC,20/12/2022,Scholar Allowances,Award Costs,Scholar,PIN061875,211
FCDO,CSC,20/12/2022,Scholar Allowances,Award Costs,Scholar,PIN061874,76
FCDO,CSC,20/12/2022,Scholar Allowances,Award Costs,Scholar,PIN061871,211
FCDO,CSC,20/12/2022,Scholar Allowances,Award Costs,Scholar,PIN061870,157
FCDO,CSC,20/12/2022,Scholar Allowances,Award Costs,Scholar,PIN061869,211
FCDO,CSC,20/12/2022,Scholar Allowances,Award Costs,Scholar,PIN061868,76
FCDO,CSC,20/12/2022,Scholar Allowances,Award Costs,Scholar,PIN061866,106
FCDO,CSC,20/12/2022,Scholar Allowances,Award Costs,Scholar,PIN061863,157
FCDO,CSC,20/12/2022,Scholar Allowances,Award Costs,Scholar,PIN061862,157
FCDO,CSC,20/12/2022,Scholar Allowances,Award Costs,Scholar,PIN061861,157
FCDO,CSC,20/12/2022,Scholar Allowances,Award Costs,Scholar,PIN061860,157
FCDO,CSC,20/12/2022,Scholar Allowances,Award Costs,Scholar,PIN061859,211
FCDO,CSC,20/12/2022,Scholar Allowances,Award Costs,Scholar,PIN061858,108
FCDO,CSC,20/12/2022,Scholar Allowances,Award Costs,Scholar,PIN061857,211
FCDO,CSC,20/12/2022,Scholar Allowances,Award Costs,Scholar,PIN061856,157
FCDO,CSC,20/12/2022,Scholar Allowances,Award Costs,Scholar,PIN061855,76
FCDO,CSC,20/12/2022,Scholar Allowances,Award Costs,Scholar,PIN061850,157
FCDO,CSC,20/12/2022,Scholar Allowances,Award Costs,Scholar,PIN061849,157
FCDO,CSC,20/12/2022,Scholar Allowances,Award Costs,Scholar,PIN061848,157
FCDO,CSC,20/12/2022,Scholar Allowances,Award Costs,Scholar,PIN061847,108
FCDO,CSC,20/12/2022,Scholar Allowances,Award Costs,Scholar,PIN061846,106
FCDO,CSC,20/12/2022,Scholar Allowances,Award Costs,Scholar,PIN061844,211
FCDO,CSC,20/12/2022,Scholar Allowances,Award Costs,Scholar,PIN061843,211
FCDO,CSC,20/12/2022,Scholar Allowances,Award Costs,Scholar,PIN061842,157
FCDO,CSC,20/12/2022,Scholar Allowances,Award Costs,Scholar,PIN061841,157
FCDO,CSC,20/12/2022,Scholar Allowances,Award Costs,Scholar,PIN061840,157
FCDO,CSC,20/12/2022,Scholar Allowances,Award Costs,Scholar,PIN061839,157
FCDO,CSC,20/12/2022,Scholar Allowances,Award Costs,Scholar,PIN061838,157
FCDO,CSC,20/12/2022,Scholar Allowances,Award Costs,Scholar,PIN061837,157
FCDO,CSC,20/12/2022,Scholar Allowances,Award Costs,Scholar,PIN061836,106
FCDO,CSC,20/12/2022,Scholar Allowances,Award Costs,Scholar,PIN061834,157
FCDO,CSC,20/12/2022,Scholar Allowances,Award Costs,Scholar,PIN061833,157
FCDO,CSC,20/12/2022,Scholar Allowances,Award Costs,Scholar,PIN061832,76
FCDO,CSC,20/12/2022,Scholar Allowances,Award Costs,Scholar,PIN061830,76
FCDO,CSC,20/12/2022,Scholar Allowances,Award Costs,Scholar,PIN061828,76
FCDO,CSC,20/12/2022,Scholar Allowances,Award Costs,Scholar,PIN061825,157
FCDO,CSC,20/12/2022,Scholar Allowances,Award Costs,Scholar,PIN061824,76
FCDO,CSC,20/12/2022,Scholar Allowances,Award Costs,Scholar,PIN061822,76
FCDO,CSC,20/12/2022,Scholar Allowances,Award Costs,Scholar,PIN061820,211
FCDO,CSC,20/12/2022,Scholar Allowances,Award Costs,Scholar,PIN061819,76
FCDO,CSC,20/12/2022,Scholar Allowances,Award Costs,Scholar,PIN061817,76
FCDO,CSC,20/12/2022,Scholar Allowances,Award Costs,Scholar,PIN061815,211
FCDO,CSC,20/12/2022,Scholar Allowances,Award Costs,Scholar,PIN061814,108
FCDO,CSC,20/12/2022,Scholar Allowances,Award Costs,Scholar,PIN061813,106
FCDO,CSC,20/12/2022,Scholar Allowances,Award Costs,Scholar,PIN061811,157
FCDO,CSC,20/12/2022,Scholar Allowances,Award Costs,Scholar,PIN061810,157
FCDO,CSC,20/12/2022,Scholar Allowances,Award Costs,Scholar,PIN061809,108
FCDO,CSC,20/12/2022,Scholar Allowances,Award Costs,Scholar,PIN061808,108
FCDO,CSC,20/12/2022,Scholar Allowances,Award Costs,Scholar,PIN061807,108
FCDO,CSC,20/12/2022,Scholar Allowances,Award Costs,Scholar,PIN061806,106
FCDO,CSC,20/12/2022,Scholar Allowances,Award Costs,Scholar,PIN061804,106
FCDO,CSC,20/12/2022,Scholar Stipend,Award Costs,Scholar,PIN061801,2472
FCDO,CSC,20/12/2022,Scholar Allowances,Award Costs,Scholar,PIN061800,225
FCDO,CSC,20/12/2022,Scholar Allowances,Award Costs,Scholar,PIN061718,798
FCDO,CSC,20/12/2022,Scholar Allowances,Award Costs,Scholar,PIN061717,798
FCDO,CSC,20/12/2022,Scholar Allowances,Award Costs,Scholar,PIN061716,798
FCDO,CSC,20/12/2022,Scholar Allowances,Award Costs,Scholar,PIN061715,1382.38
FCDO,CSC,20/12/2022,Scholar Allowances,Award Costs,Scholar,PIN061714,798
FCDO,CSC,20/12/2022,Scholar Allowances,Award Costs,Scholar,PIN061713,798
FCDO,CSC,20/12/2022,Scholar Allowances,Award Costs,Scholar,PIN061712,798
FCDO,CSC,20/12/2022,Scholar Allowances,Award Costs,Scholar,PIN061711,1060.17
FCDO,CSC,20/12/2022,Scholar Allowances,Award Costs,Scholar,PIN061710,798
FCDO,CSC,20/12/2022,Scholar Allowances,Award Costs,Scholar,PIN061709,798
FCDO,CSC,20/12/2022,Scholar Allowances,Award Costs,Scholar,PIN061708,798
FCDO,CSC,20/12/2022,Scholar Allowances,Award Costs,Scholar,PIN061707,798
FCDO,CSC,20/12/2022,Scholar Allowances,Award Costs,Scholar,PIN061706,1391.11
FCDO,CSC,20/12/2022,Scholar Allowances,Award Costs,Scholar,PIN061705,798
FCDO,CSC,20/12/2022,Scholar Allowances,Award Costs,Scholar,PIN061704,798
FCDO,CSC,20/12/2022,Scholar Allowances,Award Costs,Scholar,PIN061703,1091.73
FCDO,CSC,20/12/2022,Scholar Allowances,Award Costs,Scholar,PIN061702,806.73
FCDO,CSC,20/12/2022,Scholar Allowances,Award Costs,Scholar,PIN061701,532
FCDO,CSC,20/12/2022,Scholar Allowances,Award Costs,Scholar,PIN061700,798
FCDO,CSC,20/12/2022,Scholar Allowances,Award Costs,Scholar,PIN061699,798
FCDO,CSC,20/12/2022,Scholar Allowances,Award Costs,Scholar,PIN061698,798
FCDO,CSC,20/12/2022,Scholar Allowances,Award Costs,Scholar,PIN061697,1081.46
FCDO,CSC,20/12/2022,Scholar Allowances,Award Costs,Scholar,PIN061696,798
FCDO,CSC,20/12/2022,Scholar Allowances,Award Costs,Scholar,PIN061695,798
FCDO,CSC,20/12/2022,Scholar Allowances,Award Costs,Scholar,PIN061694,798
FCDO,CSC,20/12/2022,Scholar Allowances,Award Costs,Scholar,PIN061693,798
FCDO,CSC,20/12/2022,Scholar Allowances,Award Costs,Scholar,PIN061692,105.48
FCDO,CSC,20/12/2022,Scholar Allowances,Award Costs,Scholar,PIN061691,798
FCDO,CSC,20/12/2022,Scholar Allowances,Award Costs,Scholar,PIN061690,798
FCDO,CSC,20/12/2022,Scholar Allowances,Award Costs,Scholar,PIN061689,798
FCDO,CSC,20/12/2022,Scholar Allowances,Award Costs,Scholar,PIN061688,798
FCDO,CSC,20/12/2022,Scholar Allowances,Award Costs,Scholar,PIN061687,798
FCDO,CSC,20/12/2022,Scholar Allowances,Award Costs,Scholar,PIN061686,798
FCDO,CSC,20/12/2022,Scholar Allowances,Award Costs,Scholar,PIN061685,266
FCDO,CSC,20/12/2022,Scholar Allowances,Award Costs,Scholar,PIN061684,1072.73
FCDO,CSC,20/12/2022,Scholar Allowances,Award Costs,Scholar,PIN061683,798
FCDO,CSC,20/12/2022,Scholar Allowances,Award Costs,Scholar,PIN061682,798
FCDO,CSC,20/12/2022,Scholar Allowances,Award Costs,Scholar,PIN061681,798
FCDO,CSC,20/12/2022,Scholar Allowances,Award Costs,Scholar,PIN061680,798
FCDO,CSC,20/12/2022,Scholar Allowances,Award Costs,Scholar,PIN061679,798
FCDO,CSC,20/12/2022,Scholar Allowances,Award Costs,Scholar,PIN061678,798
FCDO,CSC,20/12/2022,Scholar Allowances,Award Costs,Scholar,PIN061677,798
FCDO,CSC,20/12/2022,Scholar Allowances,Award Costs,Scholar,PIN061676,798
FCDO,CSC,20/12/2022,Scholar Allowances,Award Costs,Scholar,PIN061675,1434.76
FCDO,CSC,20/12/2022,Scholar Allowances,Award Costs,Scholar,PIN061674,798
FCDO,CSC,20/12/2022,Scholar Allowances,Award Costs,Scholar,PIN061673,798
FCDO,CSC,20/12/2022,Scholar Allowances,Award Costs,Scholar,PIN061672,798
FCDO,CSC,20/12/2022,Scholar Allowances,Award Costs,Scholar,PIN061671,798
FCDO,CSC,20/12/2022,Scholar Allowances,Award Costs,Scholar,PIN061670,798
FCDO,CSC,20/12/2022,Scholar Allowances,Award Costs,Scholar,PIN061669,532
FCDO,CSC,20/12/2022,Scholar Allowances,Award Costs,Scholar,PIN061668,532
FCDO,CSC,20/12/2022,Scholar Allowances,Award Costs,Scholar,PIN061667,798
FCDO,CSC,20/12/2022,Scholar Allowances,Award Costs,Scholar,PIN061666,798
FCDO,CSC,20/12/2022,Scholar Allowances,Award Costs,Scholar,PIN061665,532
FCDO,CSC,20/12/2022,Scholar Allowances,Award Costs,Scholar,PIN061664,798
FCDO,CSC,20/12/2022,Scholar Allowances,Award Costs,Scholar,PIN061663,798
FCDO,CSC,20/12/2022,Scholar Allowances,Award Costs,Scholar,PIN061662,798
FCDO,CSC,20/12/2022,Scholar Allowances,Award Costs,Scholar,PIN061661,798
FCDO,CSC,20/12/2022,Scholar Allowances,Award Costs,Scholar,PIN061660,532
FCDO,CSC,20/12/2022,Scholar Allowances,Award Costs,Scholar,PIN061659,532
FCDO,CSC,20/12/2022,Scholar Allowances,Award Costs,Scholar,PIN061658,798
FCDO,CSC,20/12/2022,Scholar Allowances,Award Costs,Scholar,PIN061657,532
FCDO,CSC,20/12/2022,Scholar Allowances,Award Costs,Scholar,PIN061656,1230.04
FCDO,CSC,20/12/2022,Scholar Allowances,Award Costs,Scholar,PIN061655,798
FCDO,CSC,20/12/2022,Scholar Allowances,Award Costs,Scholar,PIN061654,798
FCDO,CSC,20/12/2022,Scholar Allowances,Award Costs,Scholar,PIN061653,87.39
FCDO,CSC,20/12/2022,Scholar Allowances,Award Costs,Scholar,PIN061652,532
FCDO,CSC,20/12/2022,Scholar Allowances,Award Costs,Scholar,PIN061651,798
FCDO,CSC,20/12/2022,Scholar Allowances,Award Costs,Scholar,PIN061650,532
FCDO,CSC,20/12/2022,Scholar Allowances,Award Costs,Scholar,PIN061649,798
FCDO,CSC,20/12/2022,Scholar Allowances,Award Costs,Scholar,PIN061648,532
FCDO,CSC,20/12/2022,Scholar Allowances,Award Costs,Scholar,PIN061647,532
FCDO,CSC,20/12/2022,Scholar Allowances,Award Costs,Scholar,PIN061646,532
FCDO,CSC,20/12/2022,Scholar Allowances,Award Costs,Scholar,PIN061645,798
FCDO,CSC,20/12/2022,Scholar Allowances,Award Costs,Scholar,PIN061644,798
FCDO,CSC,20/12/2022,Scholar Allowances,Award Costs,Scholar,PIN061643,532
FCDO,CSC,20/12/2022,Scholar Allowances,Award Costs,Scholar,PIN061642,798
FCDO,CSC,20/12/2022,Scholar Allowances,Award Costs,Scholar,PIN061641,532
FCDO,CSC,20/12/2022,Scholar Allowances,Award Costs,Scholar,PIN061640,532
FCDO,CSC,20/12/2022,Scholar Allowances,Award Costs,Scholar,PIN061639,532
FCDO,CSC,20/12/2022,Scholar Allowances,Award Costs,Scholar,PIN061638,798
FCDO,CSC,20/12/2022,Scholar Allowances,Award Costs,Scholar,PIN061637,798
FCDO,CSC,20/12/2022,Scholar Allowances,Award Costs,Scholar,PIN061636,798
FCDO,CSC,20/12/2022,Scholar Allowances,Award Costs,Scholar,PIN061635,1584
FCDO,CSC,20/12/2022,Scholar Allowances,Award Costs,Scholar,PIN061634,1051.43
FCDO,CSC,20/12/2022,Scholar Allowances,Award Costs,Scholar,PIN061633,798
FCDO,CSC,20/12/2022,Scholar Allowances,Award Costs,Scholar,PIN061632,1587
FCDO,CSC,20/12/2022,Scholar Allowances,Award Costs,Scholar,PIN061631,1584
FCDO,CSC,20/12/2022,Scholar Allowances,Award Costs,Scholar,PIN061630,798
FCDO,CSC,20/12/2022,Scholar Allowances,Award Costs,Scholar,PIN061629,1980
FCDO,CSC,20/12/2022,Scholar Allowances,Award Costs,Scholar,PIN061628,798
FCDO,CSC,20/12/2022,Scholar Allowances,Award Costs,Scholar,PIN061627,1060.17
FCDO,CSC,20/12/2022,Scholar Allowances,Award Costs,Scholar,PIN061626,1191
FCDO,CSC,20/12/2022,Scholar Allowances,Award Costs,Scholar,PIN061625,1584
FCDO,CSC,20/12/2022,Scholar Allowances,Award Costs,Scholar,PIN061624,798
FCDO,CSC,20/12/2022,Scholar Allowances,Award Costs,Scholar,PIN061623,798
FCDO,CSC,20/12/2022,Scholar Allowances,Award Costs,Scholar,PIN061622,1391.11
FCDO,CSC,20/12/2022,Scholar Allowances,Award Costs,Scholar,PIN061621,1191
FCDO,CSC,20/12/2022,Scholar Allowances,Award Costs,Scholar,PIN061620,1835.81
FCDO,CSC,20/12/2022,Scholar Allowances,Award Costs,Scholar,PIN061619,532
FCDO,CSC,20/12/2022,Scholar Allowances,Award Costs,Scholar,PIN061618,798
FCDO,CSC,20/12/2022,Scholar Allowances,Award Costs,Scholar,PIN061617,1584
FCDO,CSC,20/12/2022,Scholar Allowances,Award Costs,Scholar,PIN061616,1191
FCDO,CSC,20/12/2022,Scholar Allowances,Award Costs,Scholar,PIN061615,1081.46
FCDO,CSC,20/12/2022,Scholar Allowances,Award Costs,Scholar,PIN061614,798
FCDO,CSC,20/12/2022,Scholar Allowances,Award Costs,Scholar,PIN061613,798
FCDO,CSC,20/12/2022,Scholar Allowances,Award Costs,Scholar,PIN061612,1191
FCDO,CSC,20/12/2022,Scholar Allowances,Award Costs,Scholar,PIN061611,1584
FCDO,CSC,20/12/2022,Scholar Allowances,Award Costs,Scholar,PIN061610,1587
FCDO,CSC,20/12/2022,Scholar Allowances,Award Costs,Scholar,PIN061609,1584
FCDO,CSC,20/12/2022,Scholar Allowances,Award Costs,Scholar,PIN061608,1584
FCDO,CSC,20/12/2022,Scholar Allowances,Award Costs,Scholar,PIN061607,1587
FCDO,CSC,20/12/2022,Scholar Allowances,Award Costs,Scholar,PIN061606,1191
FCDO,CSC,20/12/2022,Scholar Allowances,Award Costs,Scholar,PIN061605,1191
FCDO,CSC,20/12/2022,Scholar Allowances,Award Costs,Scholar,PIN061604,1584
FCDO,CSC,20/12/2022,Scholar Allowances,Award Costs,Scholar,PIN061603,1191
FCDO,CSC,20/12/2022,Scholar Allowances,Award Costs,Scholar,PIN061602,1072.73
FCDO,CSC,20/12/2022,Scholar Allowances,Award Costs,Scholar,PIN061601,798
FCDO,CSC,20/12/2022,Scholar Allowances,Award Costs,Scholar,PIN061600,1191
FCDO,CSC,20/12/2022,Scholar Allowances,Award Costs,Scholar,PIN061599,798
FCDO,CSC,20/12/2022,Scholar Allowances,Award Costs,Scholar,PIN061598,798
FCDO,CSC,20/12/2022,Scholar Allowances,Award Costs,Scholar,PIN061597,1584
FCDO,CSC,20/12/2022,Scholar Allowances,Award Costs,Scholar,PIN061596,1191
FCDO,CSC,20/12/2022,Scholar Allowances,Award Costs,Scholar,PIN061595,1434.76
FCDO,CSC,20/12/2022,Scholar Allowances,Award Costs,Scholar,PIN061594,798
FCDO,CSC,20/12/2022,Scholar Allowances,Award Costs,Scholar,PIN061593,798
FCDO,CSC,20/12/2022,Scholar Allowances,Award Costs,Scholar,PIN061592,2424.64
FCDO,CSC,20/12/2022,Scholar Allowances,Award Costs,Scholar,PIN061591,798
FCDO,CSC,20/12/2022,Scholar Allowances,Award Costs,Scholar,PIN061590,532
FCDO,CSC,20/12/2022,Scholar Allowances,Award Costs,Scholar,PIN061589,1191
FCDO,CSC,20/12/2022,Scholar Allowances,Award Costs,Scholar,PIN061588,1191
FCDO,CSC,20/12/2022,Scholar Allowances,Award Costs,Scholar,PIN061587,1587
FCDO,CSC,20/12/2022,Scholar Allowances,Award Costs,Scholar,PIN061586,1191
FCDO,CSC,20/12/2022,Scholar Allowances,Award Costs,Scholar,PIN061585,532
FCDO,CSC,20/12/2022,Scholar Allowances,Award Costs,Scholar,PIN061584,1584
FCDO,CSC,20/12/2022,Scholar Allowances,Award Costs,Scholar,PIN061583,1587
FCDO,CSC,20/12/2022,Scholar Allowances,Award Costs,Scholar,PIN061582,1191
FCDO,CSC,20/12/2022,Scholar Allowances,Award Costs,Scholar,PIN061581,798
FCDO,CSC,20/12/2022,Scholar Allowances,Award Costs,Scholar,PIN061580,798
FCDO,CSC,20/12/2022,Scholar Allowances,Award Costs,Scholar,PIN061579,532
FCDO,CSC,20/12/2022,Scholar Allowances,Award Costs,Scholar,PIN061578,532
FCDO,CSC,20/12/2022,Scholar Allowances,Award Costs,Scholar,PIN061577,1980
FCDO,CSC,20/12/2022,Scholar Allowances,Award Costs,Scholar,PIN061576,1191
FCDO,CSC,20/12/2022,Scholar Allowances,Award Costs,Scholar,PIN061575,532
FCDO,CSC,20/12/2022,Scholar Allowances,Award Costs,Scholar,PIN061574,1835.81
FCDO,CSC,20/12/2022,Scholar Allowances,Award Costs,Scholar,PIN061573,1587
FCDO,CSC,20/12/2022,Scholar Allowances,Award Costs,Scholar,PIN061572,1584
FCDO,CSC,20/12/2022,Scholar Allowances,Award Costs,Scholar,PIN061571,798
FCDO,CSC,20/12/2022,Scholar Allowances,Award Costs,Scholar,PIN061570,1318.7
FCDO,CSC,20/12/2022,Scholar Allowances,Award Costs,Scholar,PIN061569,1056
FCDO,CSC,20/12/2022,Scholar Allowances,Award Costs,Scholar,PIN061568,1584
FCDO,CSC,20/12/2022,Scholar Allowances,Award Costs,Scholar,PIN061567,794
FCDO,CSC,20/12/2022,Scholar Allowances,Award Costs,Scholar,PIN061566,1191
FCDO,CSC,20/12/2022,Scholar Allowances,Award Costs,Scholar,PIN061565,794
FCDO,CSC,20/12/2022,Scholar Allowances,Award Costs,Scholar,PIN061564,532
FCDO,CSC,20/12/2022,Scholar Allowances,Award Costs,Scholar,PIN061563,1587
FCDO,CSC,20/12/2022,Scholar Allowances,Award Costs,Scholar,PIN061562,794
FCDO,CSC,20/12/2022,Scholar Allowances,Award Costs,Scholar,PIN061561,1587
FCDO,CSC,20/12/2022,Scholar Allowances,Award Costs,Scholar,PIN061560,1584
FCDO,CSC,20/12/2022,Scholar Allowances,Award Costs,Scholar,PIN061559,2373
FCDO,CSC,20/12/2022,Scholar Allowances,Award Costs,Scholar,PIN061558,798
FCDO,CSC,20/12/2022,Scholar Allowances,Award Costs,Scholar,PIN061557,532
FCDO,CSC,20/12/2022,Scholar Allowances,Award Costs,Scholar,PIN061556,1191
FCDO,CSC,20/12/2022,Scholar Allowances,Award Costs,Scholar,PIN061555,794
FCDO,CSC,20/12/2022,Scholar Allowances,Award Costs,Scholar,PIN061554,532
FCDO,CSC,20/12/2022,Scholar Allowances,Award Costs,Scholar,PIN061553,532
FCDO,CSC,20/12/2022,Scholar Allowances,Award Costs,Scholar,PIN061552,798
FCDO,CSC,20/12/2022,Scholar Allowances,Award Costs,Scholar,PIN061551,1058
FCDO,CSC,20/12/2022,Scholar Allowances,Award Costs,Scholar,PIN061550,532
FCDO,CSC,20/12/2022,Scholar Travel,Award Costs,Scholar,PIN061549,276.48
FCDO,CSC,20/12/2022,Scholar Travel,Award Costs,Scholar,PIN061548,322.56
FCDO,CSC,20/12/2022,Scholar Travel,Award Costs,Scholar,PIN061547,430.08
FCDO,CSC,20/12/2022,Scholar Travel,Award Costs,Scholar,PIN061546,430.08
FCDO,CSC,20/12/2022,Scholar Travel,Award Costs,Scholar,PIN061545,414.72
FCDO,CSC,20/12/2022,Scholar Travel,Award Costs,Scholar,PIN061544,353.28
FCDO,CSC,20/12/2022,Scholar Travel,Award Costs,Scholar,PIN061543,414.72
FCDO,CSC,20/12/2022,Scholar Travel,Award Costs,Scholar,PIN061542,430.08
FCDO,CSC,20/12/2022,Scholar Travel,Award Costs,Scholar,PIN061541,384
FCDO,CSC,20/12/2022,Scholar Travel,Award Costs,Scholar,PIN061540,414.72
FCDO,CSC,20/12/2022,Advances Repayments,Award Costs,Scholar,PIN061539,-725.4
FCDO,CSC,20/12/2022,Advances Repayments,Award Costs,Scholar,PIN061538,-340
FCDO,CSC,20/12/2022,Advances Repayments,Award Costs,Scholar,PIN061537,-300
FCDO,CSC,20/12/2022,Advances Repayments,Award Costs,Scholar,PIN061536,-700
FCDO,CSC,20/12/2022,Advances Repayments,Award Costs,Scholar,PIN061535,-1007.5
FCDO,CSC,20/12/2022,Advances Repayments,Award Costs,Scholar,PIN061534,-143.91
FCDO,CSC,20/12/2022,Advances Repayments,Award Costs,Scholar,PIN061533,-1137.01
FCDO,CSC,20/12/2022,Advances Repayments,Award Costs,Scholar,PIN061532,-1669
FCDO,CSC,20/12/2022,Advances Repayments,Award Costs,Scholar,PIN061531,-1137.01
FCDO,CSC,20/12/2022,Advances Repayments,Award Costs,Scholar,PIN061530,-1096.41
FCDO,CSC,20/12/2022,Advances Repayments,Award Costs,Scholar,PIN061529,-1145.56
FCDO,CSC,20/12/2022,Advances Repayments,Award Costs,Scholar,PIN061528,-484.32
FCDO,CSC,20/12/2022,Advances Repayments,Award Costs,Scholar,PIN061527,-1394.4
FCDO,CSC,20/12/2022,Advances Repayments,Award Costs,Scholar,PIN061526,-1015
FCDO,CSC,20/12/2022,Advances Repayments,Award Costs,Scholar,PIN061525,-1096.41
FCDO,CSC,20/12/2022,Scholar Stipend,Award Costs,Scholar,PIN061524,1516
FCDO,CSC,20/12/2022,Scholar Stipend,Award Costs,Scholar,PIN061523,488
FCDO,CSC,20/12/2022,Scholar Stipend,Award Costs,Scholar,PIN061521,2472
FCDO,CSC,20/12/2022,Scholar Stipend,Award Costs,Scholar,PIN061520,2472
FCDO,CSC,20/12/2022,Scholar Stipend,Award Costs,Scholar,PIN061519,4548
FCDO,CSC,20/12/2022,Scholar Stipend,Award Costs,Scholar,PIN061518,2472
FCDO,CSC,20/12/2022,Scholar Stipend,Award Costs,Scholar,PIN061517,4548
FCDO,CSC,20/12/2022,Scholar Stipend,Award Costs,Scholar,PIN061516,3032
FCDO,CSC,20/12/2022,Scholar Stipend,Award Costs,Scholar,PIN061515,3708
FCDO,CSC,20/12/2022,Scholar Stipend,Award Costs,Scholar,PIN061514,3032
FCDO,CSC,20/12/2022,Scholar Stipend,Award Costs,Scholar,PIN061513,2472
FCDO,CSC,20/12/2022,Scholar Stipend,Award Costs,Scholar,PIN061512,2472
FCDO,CSC,20/12/2022,Scholar Stipend,Award Costs,Scholar,PIN061511,3708
FCDO,CSC,20/12/2022,Scholar Stipend,Award Costs,Scholar,PIN061510,2472
FCDO,CSC,20/12/2022,Scholar Stipend,Award Costs,Scholar,PIN061509,3708
FCDO,CSC,20/12/2022,Scholar Stipend,Award Costs,Scholar,PIN061508,3708
FCDO,CSC,20/12/2022,Scholar Stipend,Award Costs,Scholar,PIN061507,3708
FCDO,CSC,20/12/2022,Scholar Stipend,Award Costs,Scholar,PIN061506,2472
FCDO,CSC,20/12/2022,Scholar Stipend,Award Costs,Scholar,PIN061505,3708
FCDO,CSC,20/12/2022,Scholar Stipend,Award Costs,Scholar,PIN061504,2472
FCDO,CSC,20/12/2022,Scholar Stipend,Award Costs,Scholar,PIN061503,3708
FCDO,CSC,20/12/2022,Scholar Stipend,Award Costs,Scholar,PIN061502,2472
FCDO,CSC,20/12/2022,Scholar Stipend,Award Costs,Scholar,PIN061501,3032
FCDO,CSC,20/12/2022,Scholar Stipend,Award Costs,Scholar,PIN061500,3032
FCDO,CSC,20/12/2022,Scholar Stipend,Award Costs,Scholar,PIN061499,3708
FCDO,CSC,20/12/2022,Scholar Stipend,Award Costs,Scholar,PIN061498,2472
FCDO,CSC,20/12/2022,Scholar Stipend,Award Costs,Scholar,PIN061497,2472
FCDO,CSC,20/12/2022,Scholar Stipend,Award Costs,Scholar,PIN061496,2472
FCDO,CSC,20/12/2022,Scholar Stipend,Award Costs,Scholar,PIN061495,3708
FCDO,CSC,20/12/2022,Scholar Stipend,Award Costs,Scholar,PIN061494,3708
FCDO,CSC,20/12/2022,Scholar Stipend,Award Costs,Scholar,PIN061493,1236
FCDO,CSC,20/12/2022,Scholar Stipend,Award Costs,Scholar,PIN061492,3708
FCDO,CSC,20/12/2022,Scholar Stipend,Award Costs,Scholar,PIN061491,3708
FCDO,CSC,20/12/2022,Scholar Stipend,Award Costs,Scholar,PIN061490,2472
FCDO,CSC,20/12/2022,Scholar Stipend,Award Costs,Scholar,PIN061489,2774.02
FCDO,CSC,20/12/2022,Scholar Stipend,Award Costs,Scholar,PIN061488,4548
FCDO,CSC,20/12/2022,Scholar Stipend,Award Costs,Scholar,PIN061487,4548
FCDO,CSC,20/12/2022,Scholar Stipend,Award Costs,Scholar,PIN061486,3708
FCDO,CSC,20/12/2022,Scholar Stipend,Award Costs,Scholar,PIN061485,2472
FCDO,CSC,20/12/2022,Scholar Stipend,Award Costs,Scholar,PIN061484,3708
FCDO,CSC,20/12/2022,Scholar Stipend,Award Costs,Scholar,PIN061483,3708
FCDO,CSC,20/12/2022,Scholar Stipend,Award Costs,Scholar,PIN061482,3690.23
FCDO,CSC,20/12/2022,Scholar Stipend,Award Costs,Scholar,PIN061481,2472
FCDO,CSC,20/12/2022,Scholar Stipend,Award Costs,Scholar,PIN061480,3708
FCDO,CSC,20/12/2022,Scholar Stipend,Award Costs,Scholar,PIN061479,2199
FCDO,CSC,20/12/2022,Scholar Stipend,Award Costs,Scholar,PIN061478,2472
FCDO,CSC,20/12/2022,Scholar Stipend,Award Costs,Scholar,PIN061477,2652.2
FCDO,CSC,20/12/2022,Scholar Stipend,Award Costs,Scholar,PIN061476,3708
FCDO,CSC,20/12/2022,Scholar Stipend,Award Costs,Scholar,PIN061475,4548
FCDO,CSC,20/12/2022,Scholar Stipend,Award Costs,Scholar,PIN061474,4548
FCDO,CSC,20/12/2022,Scholar Stipend,Award Costs,Scholar,PIN061473,3708
FCDO,CSC,20/12/2022,Scholar Stipend,Award Costs,Scholar,PIN061471,4548
FCDO,CSC,20/12/2022,Scholar Stipend,Award Costs,Scholar,PIN061470,3708
FCDO,CSC,20/12/2022,Scholar Stipend,Award Costs,Scholar,PIN061469,3708
FCDO,CSC,20/12/2022,Scholar Stipend,Award Costs,Scholar,PIN061468,3708
FCDO,CSC,20/12/2022,Scholar Stipend,Award Costs,Scholar,PIN061467,4548
FCDO,CSC,20/12/2022,Scholar Stipend,Award Costs,Scholar,PIN061466,4548
FCDO,CSC,20/12/2022,Scholar Stipend,Award Costs,Scholar,PIN061465,4548
FCDO,CSC,20/12/2022,Scholar Stipend,Award Costs,Scholar,PIN061464,3708
FCDO,CSC,20/12/2022,Scholar Stipend,Award Costs,Scholar,PIN061463,3708
FCDO,CSC,20/12/2022,Scholar Stipend,Award Costs,Scholar,PIN061462,3708
FCDO,CSC,20/12/2022,Scholar Stipend,Award Costs,Scholar,PIN061461,3708
FCDO,CSC,20/12/2022,Scholar Stipend,Award Costs,Scholar,PIN061460,3708
FCDO,CSC,20/12/2022,Scholar Stipend,Award Costs,Scholar,PIN061459,3708
FCDO,CSC,20/12/2022,Scholar Stipend,Award Costs,Scholar,PIN061458,3708
FCDO,CSC,20/12/2022,Scholar Stipend,Award Costs,Scholar,PIN061457,4548
FCDO,CSC,20/12/2022,Scholar Stipend,Award Costs,Scholar,PIN061456,3708
FCDO,CSC,20/12/2022,Scholar Stipend,Award Costs,Scholar,PIN061455,3708
FCDO,CSC,20/12/2022,Scholar Stipend,Award Costs,Scholar,PIN061454,4548
FCDO,CSC,20/12/2022,Scholar Stipend,Award Costs,Scholar,PIN061453,3324.76
FCDO,CSC,20/12/2022,Scholar Stipend,Award Costs,Scholar,PIN061452,3708
FCDO,CSC,20/12/2022,Scholar Stipend,Award Costs,Scholar,PIN061451,3708
FCDO,CSC,20/12/2022,Scholar Stipend,Award Costs,Scholar,PIN061450,3708
FCDO,CSC,20/12/2022,Scholar Stipend,Award Costs,Scholar,PIN061449,4548
FCDO,CSC,20/12/2022,Scholar Stipend,Award Costs,Scholar,PIN061448,3708
FCDO,CSC,20/12/2022,Scholar Stipend,Award Costs,Scholar,PIN061447,3708
FCDO,CSC,20/12/2022,Scholar Stipend,Award Costs,Scholar,PIN061446,3708
FCDO,CSC,20/12/2022,Scholar Stipend,Award Costs,Scholar,PIN061445,3708
FCDO,CSC,20/12/2022,Scholar Stipend,Award Costs,Scholar,PIN061444,3708
FCDO,CSC,20/12/2022,Scholar Stipend,Award Costs,Scholar,PIN061443,3708
FCDO,CSC,20/12/2022,Scholar Stipend,Award Costs,Scholar,PIN061442,3708
FCDO,CSC,20/12/2022,Scholar Stipend,Award Costs,Scholar,PIN061441,3708
FCDO,CSC,20/12/2022,Scholar Stipend,Award Costs,Scholar,PIN061440,3708
FCDO,CSC,20/12/2022,Scholar Stipend,Award Costs,Scholar,PIN061439,3708
FCDO,CSC,20/12/2022,Scholar Stipend,Award Costs,Scholar,PIN061438,4548
FCDO,CSC,20/12/2022,Scholar Stipend,Award Costs,Scholar,PIN061437,3708
FCDO,CSC,20/12/2022,Scholar Stipend,Award Costs,Scholar,PIN061436,3708
FCDO,CSC,20/12/2022,Scholar Stipend,Award Costs,Scholar,PIN061435,3708
FCDO,CSC,20/12/2022,Scholar Stipend,Award Costs,Scholar,PIN061434,3708
FCDO,CSC,20/12/2022,Scholar Stipend,Award Costs,Scholar,PIN061433,3708
FCDO,CSC,20/12/2022,Scholar Stipend,Award Costs,Scholar,PIN061432,3708
FCDO,CSC,20/12/2022,Scholar Stipend,Award Costs,Scholar,PIN061431,3708
FCDO,CSC,20/12/2022,Scholar Stipend,Award Costs,Scholar,PIN061430,3708
FCDO,CSC,20/12/2022,Scholar Stipend,Award Costs,Scholar,PIN061429,4548
FCDO,CSC,20/12/2022,Scholar Stipend,Award Costs,Scholar,PIN061428,3708
FCDO,CSC,20/12/2022,Scholar Stipend,Award Costs,Scholar,PIN061427,3708
FCDO,CSC,20/12/2022,Scholar Stipend,Award Costs,Scholar,PIN061426,4548
FCDO,CSC,20/12/2022,Scholar Stipend,Award Costs,Scholar,PIN061425,3708
FCDO,CSC,20/12/2022,Scholar Stipend,Award Costs,Scholar,PIN061424,3708
FCDO,CSC,20/12/2022,Scholar Stipend,Award Costs,Scholar,PIN061423,3708
FCDO,CSC,20/12/2022,Scholar Stipend,Award Costs,Scholar,PIN061422,3708
FCDO,CSC,20/12/2022,Scholar Stipend,Award Costs,Scholar,PIN061421,3708
FCDO,CSC,20/12/2022,Scholar Stipend,Award Costs,Scholar,PIN061420,3708
FCDO,CSC,20/12/2022,Scholar Stipend,Award Costs,Scholar,PIN061419,4548
FCDO,CSC,20/12/2022,Scholar Stipend,Award Costs,Scholar,PIN061418,3708
FCDO,CSC,20/12/2022,Scholar Stipend,Award Costs,Scholar,PIN061417,4548
FCDO,CSC,20/12/2022,Scholar Stipend,Award Costs,Scholar,PIN061416,3708
FCDO,CSC,20/12/2022,Scholar Stipend,Award Costs,Scholar,PIN061415,3708
FCDO,CSC,20/12/2022,Scholar Stipend,Award Costs,Scholar,PIN061414,3708
FCDO,CSC,20/12/2022,Scholar Stipend,Award Costs,Scholar,PIN061413,4548
FCDO,CSC,20/12/2022,Scholar Stipend,Award Costs,Scholar,PIN061412,3708
FCDO,CSC,20/12/2022,Scholar Stipend,Award Costs,Scholar,PIN061411,4548
FCDO,CSC,20/12/2022,Scholar Stipend,Award Costs,Scholar,PIN061410,4548
FCDO,CSC,20/12/2022,Scholar Stipend,Award Costs,Scholar,PIN061409,3708
FCDO,CSC,20/12/2022,Scholar Stipend,Award Costs,Scholar,PIN061408,3708
FCDO,CSC,20/12/2022,Scholar Stipend,Award Costs,Scholar,PIN061407,3708
FCDO,CSC,20/12/2022,Scholar Stipend,Award Costs,Scholar,PIN061406,4548
FCDO,CSC,20/12/2022,Scholar Stipend,Award Costs,Scholar,PIN061405,3708
FCDO,CSC,20/12/2022,Scholar Stipend,Award Costs,Scholar,PIN061404,4548
FCDO,CSC,20/12/2022,Scholar Stipend,Award Costs,Scholar,PIN061403,3708
FCDO,CSC,20/12/2022,Scholar Stipend,Award Costs,Scholar,PIN061402,3708
FCDO,CSC,20/12/2022,Scholar Stipend,Award Costs,Scholar,PIN061401,3708
FCDO,CSC,20/12/2022,Scholar Stipend,Award Costs,Scholar,PIN061400,3708
FCDO,CSC,20/12/2022,Scholar Stipend,Award Costs,Scholar,PIN061399,3708
FCDO,CSC,20/12/2022,Scholar Stipend,Award Costs,Scholar,PIN061398,3708
FCDO,CSC,20/12/2022,Scholar Stipend,Award Costs,Scholar,PIN061397,4548
FCDO,CSC,20/12/2022,Scholar Stipend,Award Costs,Scholar,PIN061396,3708
FCDO,CSC,20/12/2022,Scholar Stipend,Award Costs,Scholar,PIN061395,3708
FCDO,CSC,20/12/2022,Scholar Stipend,Award Costs,Scholar,PIN061394,3708
FCDO,CSC,20/12/2022,Scholar Stipend,Award Costs,Scholar,PIN061393,3708
FCDO,CSC,20/12/2022,Scholar Stipend,Award Costs,Scholar,PIN061392,4548
FCDO,CSC,20/12/2022,Scholar Stipend,Award Costs,Scholar,PIN061391,4548
FCDO,CSC,20/12/2022,Scholar Stipend,Award Costs,Scholar,PIN061390,3708
FCDO,CSC,20/12/2022,Scholar Stipend,Award Costs,Scholar,PIN061389,4548
FCDO,CSC,20/12/2022,Scholar Stipend,Award Costs,Scholar,PIN061388,3708
FCDO,CSC,20/12/2022,Scholar Stipend,Award Costs,Scholar,PIN061387,3708
FCDO,CSC,20/12/2022,Scholar Stipend,Award Costs,Scholar,PIN061386,4548
FCDO,CSC,20/12/2022,Scholar Stipend,Award Costs,Scholar,PIN061385,3708
FCDO,CSC,20/12/2022,Scholar Stipend,Award Costs,Scholar,PIN061384,3708
FCDO,CSC,20/12/2022,Scholar Stipend,Award Costs,Scholar,PIN061383,3708
FCDO,CSC,20/12/2022,Scholar Stipend,Award Costs,Scholar,PIN061382,1854
FCDO,CSC,20/12/2022,Scholar Stipend,Award Costs,Scholar,PIN061381,3708
FCDO,CSC,20/12/2022,Scholar Stipend,Award Costs,Scholar,PIN061380,3708
FCDO,CSC,20/12/2022,Scholar Stipend,Award Costs,Scholar,PIN061379,4548
FCDO,CSC,20/12/2022,Scholar Stipend,Award Costs,Scholar,PIN061378,4548
FCDO,CSC,20/12/2022,Scholar Stipend,Award Costs,Scholar,PIN061377,3708
FCDO,CSC,20/12/2022,Scholar Stipend,Award Costs,Scholar,PIN061376,3708
FCDO,CSC,20/12/2022,Scholar Stipend,Award Costs,Scholar,PIN061375,3708
FCDO,CSC,20/12/2022,Scholar Stipend,Award Costs,Scholar,PIN061374,4548
FCDO,CSC,20/12/2022,Scholar Stipend,Award Costs,Scholar,PIN061373,3708
FCDO,CSC,20/12/2022,Scholar Stipend,Award Costs,Scholar,PIN061372,3708
FCDO,CSC,20/12/2022,Scholar Stipend,Award Costs,Scholar,PIN061371,3708
FCDO,CSC,20/12/2022,Scholar Stipend,Award Costs,Scholar,PIN061370,3708
FCDO,CSC,20/12/2022,Scholar Stipend,Award Costs,Scholar,PIN061369,3708
FCDO,CSC,20/12/2022,Scholar Stipend,Award Costs,Scholar,PIN061368,3708
FCDO,CSC,20/12/2022,Scholar Stipend,Award Costs,Scholar,PIN061367,3708
FCDO,CSC,20/12/2022,Scholar Stipend,Award Costs,Scholar,PIN061366,4548
FCDO,CSC,20/12/2022,Scholar Stipend,Award Costs,Scholar,PIN061365,3708
FCDO,CSC,20/12/2022,Scholar Stipend,Award Costs,Scholar,PIN061364,3708
FCDO,CSC,20/12/2022,Scholar Stipend,Award Costs,Scholar,PIN061363,3708
FCDO,CSC,20/12/2022,Scholar Stipend,Award Costs,Scholar,PIN061362,3708
FCDO,CSC,20/12/2022,Scholar Stipend,Award Costs,Scholar,PIN061361,4548
FCDO,CSC,20/12/2022,Scholar Stipend,Award Costs,Scholar,PIN061360,3708
FCDO,CSC,20/12/2022,Scholar Stipend,Award Costs,Scholar,PIN061359,3708
FCDO,CSC,20/12/2022,Scholar Stipend,Award Costs,Scholar,PIN061358,3708
FCDO,CSC,20/12/2022,Scholar Stipend,Award Costs,Scholar,PIN061357,3708
FCDO,CSC,20/12/2022,Scholar Stipend,Award Costs,Scholar,PIN061356,3708
FCDO,CSC,20/12/2022,Scholar Stipend,Award Costs,Scholar,PIN061355,3708
FCDO,CSC,20/12/2022,Scholar Stipend,Award Costs,Scholar,PIN061354,1177.63
FCDO,CSC,20/12/2022,Scholar Stipend,Award Costs,Scholar,PIN061353,3708
FCDO,CSC,20/12/2022,Scholar Stipend,Award Costs,Scholar,PIN061352,3708
FCDO,CSC,20/12/2022,Scholar Stipend,Award Costs,Scholar,PIN061351,4548
FCDO,CSC,20/12/2022,Scholar Stipend,Award Costs,Scholar,PIN061350,4548
FCDO,CSC,20/12/2022,Scholar Stipend,Award Costs,Scholar,PIN061349,3708
FCDO,CSC,20/12/2022,Scholar Stipend,Award Costs,Scholar,PIN061348,3708
FCDO,CSC,20/12/2022,Scholar Stipend,Award Costs,Scholar,PIN061347,3708
FCDO,CSC,20/12/2022,Scholar Stipend,Award Costs,Scholar,PIN061346,3708
FCDO,CSC,20/12/2022,Scholar Stipend,Award Costs,Scholar,PIN061345,3708
FCDO,CSC,20/12/2022,Scholar Stipend,Award Costs,Scholar,PIN061344,3708
FCDO,CSC,20/12/2022,Scholar Stipend,Award Costs,Scholar,PIN061343,3708
FCDO,CSC,20/12/2022,Scholar Stipend,Award Costs,Scholar,PIN061342,3708
FCDO,CSC,20/12/2022,Scholar Stipend,Award Costs,Scholar,PIN061341,3708
FCDO,CSC,20/12/2022,Scholar Stipend,Award Costs,Scholar,PIN061340,3708
FCDO,CSC,20/12/2022,Scholar Stipend,Award Costs,Scholar,PIN061339,1218.23
FCDO,CSC,20/12/2022,Scholar Stipend,Award Costs,Scholar,PIN061338,3708
FCDO,CSC,20/12/2022,Scholar Stipend,Award Costs,Scholar,PIN061337,2472
FCDO,CSC,20/12/2022,Scholar Stipend,Award Costs,Scholar,PIN061336,2472
FCDO,CSC,20/12/2022,Scholar Stipend,Award Costs,Scholar,PIN061335,3708
FCDO,CSC,20/12/2022,Scholar Stipend,Award Costs,Scholar,PIN061334,2711.37
FCDO,CSC,20/12/2022,Scholar Stipend,Award Costs,Scholar,PIN061333,3708
FCDO,CSC,20/12/2022,Scholar Stipend,Award Costs,Scholar,PIN061332,1236
FCDO,CSC,20/12/2022,Scholar Stipend,Award Costs,Scholar,PIN061331,3708
FCDO,CSC,20/12/2022,Scholar Stipend,Award Costs,Scholar,PIN061330,2472
FCDO,CSC,20/12/2022,Scholar Stipend,Award Costs,Scholar,PIN061329,3708
FCDO,CSC,20/12/2022,Scholar Stipend,Award Costs,Scholar,PIN061328,3708
FCDO,CSC,20/12/2022,Scholar Stipend,Award Costs,Scholar,PIN061327,1236
FCDO,CSC,20/12/2022,Scholar Stipend,Award Costs,Scholar,PIN061326,3708
FCDO,CSC,20/12/2022,Scholar Stipend,Award Costs,Scholar,PIN061325,3708
FCDO,CSC,20/12/2022,Scholar Stipend,Award Costs,Scholar,PIN061324,1516
FCDO,CSC,20/12/2022,Scholar Stipend,Award Costs,Scholar,PIN061323,3708
FCDO,CSC,20/12/2022,Scholar Stipend,Award Costs,Scholar,PIN061322,3708
FCDO,CSC,20/12/2022,Scholar Stipend,Award Costs,Scholar,PIN061321,3708
FCDO,CSC,20/12/2022,Scholar Stipend,Award Costs,Scholar,PIN061320,4548
FCDO,CSC,20/12/2022,Scholar Stipend,Award Costs,Scholar,PIN061319,2472
FCDO,CSC,20/12/2022,Scholar Stipend,Award Costs,Scholar,PIN061318,3032
FCDO,CSC,20/12/2022,Scholar Stipend,Award Costs,Scholar,PIN061317,3708
FCDO,CSC,20/12/2022,Scholar Stipend,Award Costs,Scholar,PIN061316,1177.63
FCDO,CSC,20/12/2022,Scholar Stipend,Award Costs,Scholar,PIN061315,1236
FCDO,CSC,20/12/2022,Scholar Stipend,Award Costs,Scholar,PIN061314,1236
FCDO,CSC,20/12/2022,Scholar Stipend,Award Costs,Scholar,PIN061313,1494.21
FCDO,CSC,20/12/2022,Scholar Stipend,Award Costs,Scholar,PIN061312,2332.41
FCDO,CSC,20/12/2022,Scholar Stipend,Award Costs,Scholar,PIN061311,2332.41
FCDO,CSC,20/12/2022,Scholar Stipend,Award Costs,Scholar,PIN061310,4548
FCDO,CSC,20/12/2022,Scholar Stipend,Award Costs,Scholar,PIN061309,4548
FCDO,CSC,20/12/2022,Scholar Stipend,Award Costs,Scholar,PIN061308,2472
FCDO,CSC,20/12/2022,Scholar Stipend,Award Costs,Scholar,PIN061307,1236
FCDO,CSC,20/12/2022,Scholar Stipend,Award Costs,Scholar,PIN061306,3708
FCDO,CSC,20/12/2022,Scholar Stipend,Award Costs,Scholar,PIN061305,4548
FCDO,CSC,20/12/2022,Scholar Stipend,Award Costs,Scholar,PIN061304,3708
FCDO,CSC,20/12/2022,Scholar Stipend,Award Costs,Scholar,PIN061303,2472
FCDO,CSC,20/12/2022,Scholar Stipend,Award Costs,Scholar,PIN061302,3708
FCDO,CSC,20/12/2022,Scholar Stipend,Award Costs,Scholar,PIN061301,4548
FCDO,CSC,20/12/2022,Scholar Stipend,Award Costs,Scholar,PIN061300,3708
FCDO,CSC,20/12/2022,Scholar Stipend,Award Costs,Scholar,PIN061299,2472
FCDO,CSC,20/12/2022,Scholar Stipend,Award Costs,Scholar,PIN061298,3649.63
FCDO,CSC,20/12/2022,Scholar Stipend,Award Costs,Scholar,PIN061297,2472
FCDO,CSC,20/12/2022,Scholar Stipend,Award Costs,Scholar,PIN061296,3708
FCDO,CSC,20/12/2022,Scholar Stipend,Award Costs,Scholar,PIN061295,1763.9
FCDO,CSC,20/12/2022,Scholar Stipend,Award Costs,Scholar,PIN061294,3708
FCDO,CSC,20/12/2022,Scholar Stipend,Award Costs,Scholar,PIN061293,4548
FCDO,CSC,20/12/2022,Scholar Stipend,Award Costs,Scholar,PIN061292,3708
FCDO,CSC,20/12/2022,Scholar Stipend,Award Costs,Scholar,PIN061291,1236
FCDO,CSC,20/12/2022,Scholar Stipend,Award Costs,Scholar,PIN061290,2472
FCDO,CSC,20/12/2022,Scholar Stipend,Award Costs,Scholar,PIN061289,2472
FCDO,CSC,20/12/2022,Scholar Stipend,Award Costs,Scholar,PIN061288,3708
FCDO,CSC,20/12/2022,Scholar Stipend,Award Costs,Scholar,PIN061287,3708
FCDO,CSC,20/12/2022,Scholar Stipend,Award Costs,Scholar,PIN061286,3708
FCDO,CSC,20/12/2022,Scholar Stipend,Award Costs,Scholar,PIN061285,1236
FCDO,CSC,20/12/2022,Scholar Stipend,Award Costs,Scholar,PIN061284,3708
FCDO,CSC,20/12/2022,Scholar Stipend,Award Costs,Scholar,PIN061283,2472
FCDO,CSC,20/12/2022,Scholar Stipend,Award Costs,Scholar,PIN061282,2472
FCDO,CSC,20/12/2022,Scholar Stipend,Award Costs,Scholar,PIN061281,3708
FCDO,CSC,20/12/2022,Scholar Stipend,Award Costs,Scholar,PIN061280,2472
FCDO,CSC,20/12/2022,Scholar Stipend,Award Costs,Scholar,PIN061279,3708
FCDO,CSC,20/12/2022,Scholar Stipend,Award Costs,Scholar,PIN061278,3708
FCDO,CSC,20/12/2022,Scholar Stipend,Award Costs,Scholar,PIN061277,3708
FCDO,CSC,20/12/2022,Scholar Stipend,Award Costs,Scholar,PIN061276,1236
FCDO,CSC,20/12/2022,Scholar Stipend,Award Costs,Scholar,PIN061275,2472
FCDO,CSC,20/12/2022,Scholar Stipend,Award Costs,Scholar,PIN061274,3032
FCDO,CSC,20/12/2022,Scholar Stipend,Award Costs,Scholar,PIN061273,3708
FCDO,CSC,20/12/2022,Scholar Stipend,Award Costs,Scholar,PIN061272,3032
FCDO,CSC,20/12/2022,Scholar Stipend,Award Costs,Scholar,PIN061271,3708
FCDO,CSC,20/12/2022,Scholar Stipend,Award Costs,Scholar,PIN061270,1236
FCDO,CSC,20/12/2022,Scholar Stipend,Award Costs,Scholar,PIN061269,3708
FCDO,CSC,20/12/2022,Scholar Stipend,Award Costs,Scholar,PIN061268,3708
FCDO,CSC,20/12/2022,Scholar Stipend,Award Costs,Scholar,PIN061267,2472
FCDO,CSC,20/12/2022,Scholar Stipend,Award Costs,Scholar,PIN061266,4548
FCDO,CSC,20/12/2022,Scholar Stipend,Award Costs,Scholar,PIN061265,1854
FCDO,CSC,20/12/2022,Scholar Stipend,Award Costs,Scholar,PIN061264,3988
FCDO,CSC,20/12/2022,Scholar Stipend,Award Costs,Scholar,PIN061263,3708
FCDO,CSC,20/12/2022,Scholar Stipend,Award Costs,Scholar,PIN061262,3708
FCDO,CSC,20/12/2022,Scholar Stipend,Award Costs,Scholar,PIN061261,3708
FCDO,CSC,20/12/2022,Scholar Stipend,Award Costs,Scholar,PIN061260,3708
FCDO,CSC,20/12/2022,Scholar Stipend,Award Costs,Scholar,PIN061259,1499.9
FCDO,CSC,20/12/2022,Scholar Stipend,Award Costs,Scholar,PIN061258,2472
FCDO,CSC,20/12/2022,Scholar Stipend,Award Costs,Scholar,PIN061257,3708
FCDO,CSC,20/12/2022,Scholar Stipend,Award Costs,Scholar,PIN061256,2472
FCDO,CSC,20/12/2022,Scholar Stipend,Award Costs,Scholar,PIN061255,3717.2
FCDO,CSC,20/12/2022,Scholar Stipend,Award Costs,Scholar,PIN061254,3708
FCDO,CSC,20/12/2022,Scholar Stipend,Award Costs,Scholar,PIN061253,3708
FCDO,CSC,20/12/2022,Scholar Stipend,Award Costs,Scholar,PIN061252,3708
FCDO,CSC,20/12/2022,Scholar Stipend,Award Costs,Scholar,PIN061251,2472
FCDO,CSC,20/12/2022,Scholar Stipend,Award Costs,Scholar,PIN061250,3708
FCDO,CSC,20/12/2022,Scholar Stipend,Award Costs,Scholar,PIN061249,3708
FCDO,CSC,20/12/2022,Scholar Stipend,Award Costs,Scholar,PIN061248,3708
FCDO,CSC,20/12/2022,Scholar Stipend,Award Costs,Scholar,PIN061247,4548
FCDO,CSC,20/12/2022,Scholar Stipend,Award Costs,Scholar,PIN061246,3708
FCDO,CSC,20/12/2022,Scholar Stipend,Award Costs,Scholar,PIN061245,3708
FCDO,CSC,20/12/2022,Scholar Stipend,Award Costs,Scholar,PIN061244,3708
FCDO,CSC,20/12/2022,Scholar Stipend,Award Costs,Scholar,PIN061243,3708
FCDO,CSC,20/12/2022,Scholar Stipend,Award Costs,Scholar,PIN061242,4548
FCDO,CSC,20/12/2022,Scholar Stipend,Award Costs,Scholar,PIN061241,1236
FCDO,CSC,20/12/2022,Scholar Stipend,Award Costs,Scholar,PIN061240,1236
FCDO,CSC,20/12/2022,Scholar Stipend,Award Costs,Scholar,PIN061239,1236
FCDO,CSC,20/12/2022,Scholar Stipend,Award Costs,Scholar,PIN061238,3708
FCDO,CSC,20/12/2022,Scholar Stipend,Award Costs,Scholar,PIN061237,3708
FCDO,CSC,20/12/2022,Scholar Stipend,Award Costs,Scholar,PIN061236,3708
FCDO,CSC,20/12/2022,Scholar Stipend,Award Costs,Scholar,PIN061235,3708
FCDO,CSC,20/12/2022,Scholar Stipend,Award Costs,Scholar,PIN061234,3708
FCDO,CSC,20/12/2022,Scholar Stipend,Award Costs,Scholar,PIN061233,3708
FCDO,CSC,20/12/2022,Scholar Stipend,Award Costs,Scholar,PIN061232,1236
FCDO,CSC,20/12/2022,Scholar Stipend,Award Costs,Scholar,PIN061231,3708
FCDO,CSC,20/12/2022,Scholar Stipend,Award Costs,Scholar,PIN061230,3708
FCDO,CSC,20/12/2022,Scholar Stipend,Award Costs,Scholar,PIN061229,3708
FCDO,CSC,20/12/2022,Scholar Stipend,Award Costs,Scholar,PIN061228,3708
FCDO,CSC,20/12/2022,Scholar Stipend,Award Costs,Scholar,PIN061227,3708
FCDO,CSC,20/12/2022,Scholar Stipend,Award Costs,Scholar,PIN061226,3708
FCDO,CSC,20/12/2022,Scholar Stipend,Award Costs,Scholar,PIN061225,3708
FCDO,CSC,20/12/2022,Scholar Stipend,Award Costs,Scholar,PIN061224,3708
FCDO,CSC,20/12/2022,Scholar Stipend,Award Costs,Scholar,PIN061223,3708
FCDO,CSC,20/12/2022,Scholar Stipend,Award Costs,Scholar,PIN061222,4548
FCDO,CSC,20/12/2022,Scholar Stipend,Award Costs,Scholar,PIN061221,3708
FCDO,CSC,20/12/2022,Scholar Stipend,Award Costs,Scholar,PIN061220,3708
FCDO,CSC,20/12/2022,Scholar Stipend,Award Costs,Scholar,PIN061219,4548
FCDO,CSC,20/12/2022,Scholar Stipend,Award Costs,Scholar,PIN061218,2472
FCDO,CSC,20/12/2022,Scholar Stipend,Award Costs,Scholar,PIN061217,2472
FCDO,CSC,20/12/2022,Scholar Stipend,Award Costs,Scholar,PIN061216,1804.51
FCDO,CSC,20/12/2022,Scholar Stipend,Award Costs,Scholar,PIN061215,3708
FCDO,CSC,20/12/2022,Scholar Stipend,Award Costs,Scholar,PIN061214,1236
FCDO,CSC,20/12/2022,Scholar Stipend,Award Costs,Scholar,PIN061213,2472
FCDO,CSC,20/12/2022,Scholar Stipend,Award Costs,Scholar,PIN061212,3708
FCDO,CSC,20/12/2022,Scholar Stipend,Award Costs,Scholar,PIN061211,1236
FCDO,CSC,20/12/2022,Scholar Stipend,Award Costs,Scholar,PIN061210,3708
FCDO,CSC,20/12/2022,Scholar Stipend,Award Costs,Scholar,PIN061209,3708
FCDO,CSC,20/12/2022,Scholar Stipend,Award Costs,Scholar,PIN061208,3708
FCDO,CSC,20/12/2022,Scholar Stipend,Award Costs,Scholar,PIN061207,3708
FCDO,CSC,20/12/2022,Scholar Stipend,Award Costs,Scholar,PIN061206,1236
FCDO,CSC,20/12/2022,Scholar Stipend,Award Costs,Scholar,PIN061205,3708
FCDO,CSC,20/12/2022,Scholar Stipend,Award Costs,Scholar,PIN061204,1236
FCDO,CSC,20/12/2022,Scholar Stipend,Award Costs,Scholar,PIN061203,1236
FCDO,CSC,20/12/2022,Scholar Stipend,Award Costs,Scholar,PIN061202,3040.51
FCDO,CSC,20/12/2022,Scholar Stipend,Award Costs,Scholar,PIN061201,3708
FCDO,CSC,20/12/2022,Scholar Stipend,Award Costs,Scholar,PIN061200,1236
FCDO,CSC,20/12/2022,Scholar Stipend,Award Costs,Scholar,PIN061199,3708
FCDO,CSC,20/12/2022,Scholar Stipend,Award Costs,Scholar,PIN061198,3708
FCDO,CSC,20/12/2022,Scholar Stipend,Award Costs,Scholar,PIN061197,3708
FCDO,CSC,20/12/2022,Scholar Stipend,Award Costs,Scholar,PIN061196,2472
FCDO,CSC,20/12/2022,Scholar Stipend,Award Costs,Scholar,PIN061195,1236
FCDO,CSC,20/12/2022,Scholar Stipend,Award Costs,Scholar,PIN061194,3988
FCDO,CSC,20/12/2022,Scholar Stipend,Award Costs,Scholar,PIN061193,3708
FCDO,CSC,20/12/2022,Scholar Stipend,Award Costs,Scholar,PIN061192,1516
FCDO,CSC,20/12/2022,Scholar Stipend,Award Costs,Scholar,PIN061191,3708
FCDO,CSC,20/12/2022,Scholar Stipend,Award Costs,Scholar,PIN061190,3708
FCDO,CSC,20/12/2022,Scholar Stipend,Award Costs,Scholar,PIN061189,3708
FCDO,CSC,20/12/2022,Scholar Stipend,Award Costs,Scholar,PIN061188,4548
FCDO,CSC,20/12/2022,Scholar Stipend,Award Costs,Scholar,PIN061187,1236
FCDO,CSC,20/12/2022,Scholar Stipend,Award Costs,Scholar,PIN061186,1236
FCDO,CSC,20/12/2022,Scholar Stipend,Award Costs,Scholar,PIN061185,3708
FCDO,CSC,20/12/2022,Scholar Stipend,Award Costs,Scholar,PIN061184,3708
FCDO,CSC,20/12/2022,Scholar Stipend,Award Costs,Scholar,PIN061183,2163.49
FCDO,CSC,20/12/2022,Scholar Stipend,Award Costs,Scholar,PIN061182,3708
FCDO,CSC,20/12/2022,Scholar Stipend,Award Costs,Scholar,PIN061181,2472
FCDO,CSC,20/12/2022,Scholar Stipend,Award Costs,Scholar,PIN061180,1236
FCDO,CSC,20/12/2022,Scholar Stipend,Award Costs,Scholar,PIN061179,1137.02
FCDO,CSC,20/12/2022,Scholar Stipend,Award Costs,Scholar,PIN061178,1236
FCDO,CSC,20/12/2022,Scholar Stipend,Award Costs,Scholar,PIN061177,3708
FCDO,CSC,20/12/2022,Scholar Stipend,Award Costs,Scholar,PIN061176,4548
FCDO,CSC,20/12/2022,Scholar Stipend,Award Costs,Scholar,PIN061175,3708
FCDO,CSC,20/12/2022,Scholar Stipend,Award Costs,Scholar,PIN061174,3708
FCDO,CSC,20/12/2022,Scholar Stipend,Award Costs,Scholar,PIN061173,3708
FCDO,CSC,20/12/2022,Scholar Stipend,Award Costs,Scholar,PIN061172,2326.87
FCDO,CSC,20/12/2022,Scholar Stipend,Award Costs,Scholar,PIN061171,4548
FCDO,CSC,20/12/2022,Scholar Stipend,Award Costs,Scholar,PIN061170,3708
FCDO,CSC,20/12/2022,Scholar Stipend,Award Costs,Scholar,PIN061169,3708
FCDO,CSC,20/12/2022,Scholar Stipend,Award Costs,Scholar,PIN061168,2472
FCDO,CSC,20/12/2022,Scholar Stipend,Award Costs,Scholar,PIN061167,2472
FCDO,CSC,20/12/2022,Scholar Stipend,Award Costs,Scholar,PIN061166,4548
FCDO,CSC,20/12/2022,Scholar Stipend,Award Costs,Scholar,PIN061165,3708
FCDO,CSC,20/12/2022,Scholar Stipend,Award Costs,Scholar,PIN061164,4548
FCDO,CSC,20/12/2022,Scholar Stipend,Award Costs,Scholar,PIN061163,2472
FCDO,CSC,20/12/2022,Scholar Stipend,Award Costs,Scholar,PIN061162,3708
FCDO,CSC,20/12/2022,Scholar Stipend,Award Costs,Scholar,PIN061161,3708
FCDO,CSC,20/12/2022,Scholar Stipend,Award Costs,Scholar,PIN061160,3708
FCDO,CSC,20/12/2022,Scholar Stipend,Award Costs,Scholar,PIN061159,2472
FCDO,CSC,20/12/2022,Scholar Stipend,Award Costs,Scholar,PIN061158,3708
FCDO,CSC,20/12/2022,Scholar Stipend,Award Costs,Scholar,PIN061157,3032
FCDO,CSC,20/12/2022,Scholar Stipend,Award Costs,Scholar,PIN061156,3708
FCDO,CSC,20/12/2022,Scholar Stipend,Award Costs,Scholar,PIN061155,3708
FCDO,CSC,20/12/2022,Scholar Stipend,Award Costs,Scholar,PIN061154,3708
FCDO,CSC,20/12/2022,Scholar Stipend,Award Costs,Scholar,PIN061153,2472
FCDO,CSC,20/12/2022,Scholar Stipend,Award Costs,Scholar,PIN061152,3708
FCDO,CSC,20/12/2022,Scholar Stipend,Award Costs,Scholar,PIN061151,3708
FCDO,CSC,20/12/2022,Scholar Stipend,Award Costs,Scholar,PIN061150,3708
FCDO,CSC,20/12/2022,Scholar Stipend,Award Costs,Scholar,PIN061149,4548
FCDO,CSC,20/12/2022,Scholar Stipend,Award Costs,Scholar,PIN061148,4548
FCDO,CSC,20/12/2022,Scholar Stipend,Award Costs,Scholar,PIN061147,3708
FCDO,CSC,20/12/2022,Scholar Stipend,Award Costs,Scholar,PIN061146,3708
FCDO,CSC,20/12/2022,Scholar Stipend,Award Costs,Scholar,PIN061145,3708
FCDO,CSC,20/12/2022,Scholar Stipend,Award Costs,Scholar,PIN061144,2472
FCDO,CSC,20/12/2022,Scholar Stipend,Award Costs,Scholar,PIN061143,2472
FCDO,CSC,20/12/2022,Scholar Stipend,Award Costs,Scholar,PIN061142,3708
FCDO,CSC,20/12/2022,Scholar Stipend,Award Costs,Scholar,PIN061141,3708
FCDO,CSC,20/12/2022,Scholar Stipend,Award Costs,Scholar,PIN061140,4548
FCDO,CSC,20/12/2022,Scholar Stipend,Award Costs,Scholar,PIN061139,3708
FCDO,CSC,20/12/2022,Scholar Stipend,Award Costs,Scholar,PIN061138,4548
FCDO,CSC,20/12/2022,Scholar Stipend,Award Costs,Scholar,PIN061137,2472
FCDO,CSC,20/12/2022,Scholar Stipend,Award Costs,Scholar,PIN061136,3708
FCDO,CSC,20/12/2022,Scholar Stipend,Award Costs,Scholar,PIN061135,3708
FCDO,CSC,20/12/2022,Scholar Stipend,Award Costs,Scholar,PIN061134,2472
FCDO,CSC,20/12/2022,Scholar Stipend,Award Costs,Scholar,PIN061133,4548
FCDO,CSC,20/12/2022,Scholar Stipend,Award Costs,Scholar,PIN061132,3708
FCDO,CSC,20/12/2022,Scholar Stipend,Award Costs,Scholar,PIN061131,3708
FCDO,CSC,20/12/2022,Scholar Stipend,Award Costs,Scholar,PIN061130,4548
FCDO,CSC,20/12/2022,Scholar Stipend,Award Costs,Scholar,PIN061129,3708
FCDO,CSC,20/12/2022,Scholar Stipend,Award Costs,Scholar,PIN061128,3708
FCDO,CSC,20/12/2022,Scholar Stipend,Award Costs,Scholar,PIN061127,3708
FCDO,CSC,20/12/2022,Scholar Stipend,Award Costs,Scholar,PIN061126,3708
FCDO,CSC,20/12/2022,Scholar Stipend,Award Costs,Scholar,PIN061125,3708
FCDO,CSC,20/12/2022,Scholar Stipend,Award Costs,Scholar,PIN061124,3708
FCDO,CSC,20/12/2022,Scholar Stipend,Award Costs,Scholar,PIN061123,3708
FCDO,CSC,20/12/2022,Scholar Stipend,Award Costs,Scholar,PIN061122,1236
FCDO,CSC,20/12/2022,Scholar Stipend,Award Costs,Scholar,PIN061121,3708
FCDO,CSC,20/12/2022,Scholar Stipend,Award Costs,Scholar,PIN061120,4548
FCDO,CSC,20/12/2022,Scholar Stipend,Award Costs,Scholar,PIN061119,4548
FCDO,CSC,20/12/2022,Scholar Stipend,Award Costs,Scholar,PIN061118,3708
FCDO,CSC,20/12/2022,Scholar Stipend,Award Costs,Scholar,PIN061117,3708
FCDO,CSC,20/12/2022,Scholar Stipend,Award Costs,Scholar,PIN061116,4548
FCDO,CSC,20/12/2022,Scholar Stipend,Award Costs,Scholar,PIN061115,1236
FCDO,CSC,20/12/2022,Scholar Stipend,Award Costs,Scholar,PIN061114,1540.56
FCDO,CSC,20/12/2022,Scholar Stipend,Award Costs,Scholar,PIN061113,3708
FCDO,CSC,20/12/2022,Scholar Stipend,Award Costs,Scholar,PIN061112,3708
FCDO,CSC,20/12/2022,Scholar Stipend,Award Costs,Scholar,PIN061111,2063.88
FCDO,CSC,20/12/2022,Scholar Stipend,Award Costs,Scholar,PIN061110,2472
FCDO,CSC,20/12/2022,Scholar Stipend,Award Costs,Scholar,PIN061109,1236
FCDO,CSC,20/12/2022,Scholar Stipend,Award Costs,Scholar,PIN061108,638.3
FCDO,CSC,20/12/2022,Scholar Stipend,Award Costs,Scholar,PIN061107,1236
FCDO,CSC,20/12/2022,Scholar Stipend,Award Costs,Scholar,PIN061106,3708
FCDO,CSC,20/12/2022,Scholar Stipend,Award Costs,Scholar,PIN061105,3708
FCDO,CSC,20/12/2022,Scholar Stipend,Award Costs,Scholar,PIN061104,1854
FCDO,CSC,20/12/2022,Scholar Stipend,Award Costs,Scholar,PIN061103,1854
FCDO,CSC,20/12/2022,Scholar Stipend,Award Costs,Scholar,PIN061102,3708
FCDO,CSC,20/12/2022,Scholar Stipend,Award Costs,Scholar,PIN061101,1236
FCDO,CSC,20/12/2022,Scholar Stipend,Award Costs,Scholar,PIN061100,2472
FCDO,CSC,20/12/2022,Scholar Stipend,Award Costs,Scholar,PIN061099,933.98
FCDO,CSC,20/12/2022,Scholar Stipend,Award Costs,Scholar,PIN061098,3708
FCDO,CSC,20/12/2022,Scholar Stipend,Award Costs,Scholar,PIN061097,3708
FCDO,CSC,20/12/2022,Scholar Stipend,Award Costs,Scholar,PIN061096,1236
FCDO,CSC,20/12/2022,Scholar Stipend,Award Costs,Scholar,PIN061095,1854
FCDO,CSC,20/12/2022,Scholar Stipend,Award Costs,Scholar,PIN061094,1516
FCDO,CSC,20/12/2022,Scholar Stipend,Award Costs,Scholar,PIN061093,2385.25
FCDO,CSC,20/12/2022,Scholar Stipend,Award Costs,Scholar,PIN061092,719.51
FCDO,CSC,20/12/2022,Scholar Stipend,Award Costs,Scholar,PIN061091,1003.7
FCDO,CSC,20/12/2022,Scholar Stipend,Award Costs,Scholar,PIN061090,2472
FCDO,CSC,20/12/2022,Scholar Stipend,Award Costs,Scholar,PIN061089,1236
FCDO,CSC,20/12/2022,Scholar Stipend,Award Costs,Scholar,PIN061088,2472
FCDO,CSC,20/12/2022,Scholar Stipend,Award Costs,Scholar,PIN061087,2472
FCDO,CSC,20/12/2022,Scholar Stipend,Award Costs,Scholar,PIN061086,1854
FCDO,CSC,20/12/2022,Scholar Stipend,Award Costs,Scholar,PIN061085,348.65
FCDO,CSC,20/12/2022,Scholar Stipend,Award Costs,Scholar,PIN061084,2274
FCDO,CSC,20/12/2022,Scholar Stipend,Award Costs,Scholar,PIN061083,1055.8
FCDO,CSC,20/12/2022,Scholar Stipend,Award Costs,Scholar,PIN061082,1236
FCDO,CSC,22/12/2022,Scholar Allowances,Award Costs,MasterCard Prepaid Management Services Ltd,PIN062051,250
FCDO,CSC,22/12/2022,Scholar Allowances,Award Costs,MasterCard Prepaid Management Services Ltd,PIN062051,2037.5
FCDO,CSC,22/12/2022,Scholar Allowances,Award Costs,MasterCard Prepaid Management Services Ltd,PIN062051,211
FCDO,CSC,22/12/2022,Scholar Allowances,Award Costs,MasterCard Prepaid Management Services Ltd,PIN062051,211
FCDO,CSC,22/12/2022,Scholar Allowances,Award Costs,MasterCard Prepaid Management Services Ltd,PIN062051,157
FCDO,CSC,22/12/2022,Scholar Allowances,Award Costs,MasterCard Prepaid Management Services Ltd,PIN062051,211
FCDO,CSC,22/12/2022,Scholar Allowances,Award Costs,MasterCard Prepaid Management Services Ltd,PIN062051,76
FCDO,CSC,22/12/2022,Scholar Allowances,Award Costs,MasterCard Prepaid Management Services Ltd,PIN062051,108
FCDO,CSC,22/12/2022,Scholar Allowances,Award Costs,MasterCard Prepaid Management Services Ltd,PIN062051,211
FCDO,CSC,22/12/2022,Scholar Allowances,Award Costs,MasterCard Prepaid Management Services Ltd,PIN062051,157
FCDO,CSC,22/12/2022,Scholar Allowances,Award Costs,MasterCard Prepaid Management Services Ltd,PIN062051,76
FCDO,CSC,22/12/2022,Scholar Allowances,Award Costs,MasterCard Prepaid Management Services Ltd,PIN062051,108
FCDO,CSC,22/12/2022,Scholar Allowances,Award Costs,MasterCard Prepaid Management Services Ltd,PIN062051,76
FCDO,CSC,22/12/2022,Scholar Allowances,Award Costs,MasterCard Prepaid Management Services Ltd,PIN062051,106
FCDO,CSC,22/12/2022,Scholar Allowances,Award Costs,MasterCard Prepaid Management Services Ltd,PIN062051,211
FCDO,CSC,22/12/2022,Scholar Allowances,Award Costs,MasterCard Prepaid Management Services Ltd,PIN062051,108
FCDO,CSC,22/12/2022,Scholar Allowances,Award Costs,MasterCard Prepaid Management Services Ltd,PIN062051,106
FCDO,CSC,22/12/2022,Scholar Allowances,Award Costs,MasterCard Prepaid Management Services Ltd,PIN062051,157
FCDO,CSC,22/12/2022,Scholar Allowances,Award Costs,MasterCard Prepaid Management Services Ltd,PIN062051,76
FCDO,CSC,22/12/2022,Scholar Allowances,Award Costs,MasterCard Prepaid Management Services Ltd,PIN062051,157
FCDO,CSC,22/12/2022,Scholar Allowances,Award Costs,MasterCard Prepaid Management Services Ltd,PIN062051,108
FCDO,CSC,22/12/2022,Scholar Allowances,Award Costs,MasterCard Prepaid Management Services Ltd,PIN062051,108
FCDO,CSC,22/12/2022,Scholar Allowances,Award Costs,MasterCard Prepaid Management Services Ltd,PIN062051,108
FCDO,CSC,22/12/2022,Scholar Allowances,Award Costs,MasterCard Prepaid Management Services Ltd,PIN062051,108
FCDO,CSC,22/12/2022,Scholar Allowances,Award Costs,MasterCard Prepaid Management Services Ltd,PIN062051,225
FCDO,CSC,22/12/2022,Scholar Allowances,Award Costs,MasterCard Prepaid Management Services Ltd,PIN062051,225
FCDO,CSC,22/12/2022,Scholar Allowances,Award Costs,MasterCard Prepaid Management Services Ltd,PIN062051,225
FCDO,CSC,22/12/2022,Scholar Allowances,Award Costs,MasterCard Prepaid Management Services Ltd,PIN062051,225
FCDO,CSC,22/12/2022,Scholar Allowances,Award Costs,MasterCard Prepaid Management Services Ltd,PIN062051,225
FCDO,CSC,22/12/2022,Scholar Allowances,Award Costs,MasterCard Prepaid Management Services Ltd,PIN062051,225
FCDO,CSC,22/12/2022,Scholar Allowances,Award Costs,MasterCard Prepaid Management Services Ltd,PIN062051,225
FCDO,CSC,22/12/2022,Scholar Allowances,Award Costs,MasterCard Prepaid Management Services Ltd,PIN062051,225
FCDO,CSC,22/12/2022,Scholar Allowances,Award Costs,MasterCard Prepaid Management Services Ltd,PIN062051,225
FCDO,CSC,22/12/2022,Scholar Allowances,Award Costs,MasterCard Prepaid Management Services Ltd,PIN062051,225
FCDO,CSC,22/12/2022,Scholar Allowances,Award Costs,MasterCard Prepaid Management Services Ltd,PIN062051,225
FCDO,CSC,22/12/2022,Scholar Allowances,Award Costs,MasterCard Prepaid Management Services Ltd,PIN062051,2585.25
FCDO,CSC,22/12/2022,Scholar Stipend,Award Costs,MasterCard Prepaid Management Services Ltd,PIN062051,4548
FCDO,CSC,22/12/2022,Scholar Stipend,Award Costs,MasterCard Prepaid Management Services Ltd,PIN062051,3708
FCDO,CSC,22/12/2022,Scholar Stipend,Award Costs,MasterCard Prepaid Management Services Ltd,PIN062051,3708
FCDO,CSC,22/12/2022,Scholar Stipend,Award Costs,MasterCard Prepaid Management Services Ltd,PIN062051,3708
FCDO,CSC,22/12/2022,Scholar Stipend,Award Costs,MasterCard Prepaid Management Services Ltd,PIN062051,3708
FCDO,CSC,22/12/2022,Scholar Stipend,Award Costs,MasterCard Prepaid Management Services Ltd,PIN062051,3708
FCDO,CSC,22/12/2022,Scholar Stipend,Award Costs,MasterCard Prepaid Management Services Ltd,PIN062051,3708
FCDO,CSC,22/12/2022,Scholar Stipend,Award Costs,MasterCard Prepaid Management Services Ltd,PIN062051,3708
FCDO,CSC,22/12/2022,Scholar Stipend,Award Costs,MasterCard Prepaid Management Services Ltd,PIN062051,3708
FCDO,CSC,22/12/2022,Scholar Stipend,Award Costs,MasterCard Prepaid Management Services Ltd,PIN062051,3708
FCDO,CSC,22/12/2022,Scholar Stipend,Award Costs,MasterCard Prepaid Management Services Ltd,PIN062051,3708
FCDO,CSC,22/12/2022,Scholar Stipend,Award Costs,MasterCard Prepaid Management Services Ltd,PIN062051,3708
FCDO,CSC,22/12/2022,Scholar Stipend,Award Costs,MasterCard Prepaid Management Services Ltd,PIN062051,3708
FCDO,CSC,22/12/2022,Scholar Stipend,Award Costs,MasterCard Prepaid Management Services Ltd,PIN062051,3708
FCDO,CSC,22/12/2022,Scholar Stipend,Award Costs,MasterCard Prepaid Management Services Ltd,PIN062051,3708
FCDO,CSC,22/12/2022,Scholar Stipend,Award Costs,MasterCard Prepaid Management Services Ltd,PIN062051,3708
FCDO,CSC,22/12/2022,Scholar Stipend,Award Costs,MasterCard Prepaid Management Services Ltd,PIN062051,3708
FCDO,CSC,22/12/2022,Scholar Stipend,Award Costs,MasterCard Prepaid Management Services Ltd,PIN062051,3708
FCDO,CSC,22/12/2022,Scholar Stipend,Award Costs,MasterCard Prepaid Management Services Ltd,PIN062051,3708
FCDO,CSC,22/12/2022,Scholar Stipend,Award Costs,MasterCard Prepaid Management Services Ltd,PIN062051,3708
FCDO,CSC,22/12/2022,Scholar Stipend,Award Costs,MasterCard Prepaid Management Services Ltd,PIN062051,3708
FCDO,CSC,22/12/2022,Scholar Stipend,Award Costs,MasterCard Prepaid Management Services Ltd,PIN062051,162.43
FCDO,CSC,22/12/2022,Scholar Stipend,Award Costs,MasterCard Prepaid Management Services Ltd,PIN062051,3206.15
FCDO,CSC,22/12/2022,Scholar Stipend,Award Costs,MasterCard Prepaid Management Services Ltd,PIN062051,3708
FCDO,CSC,22/12/2022,Scholar Stipend,Award Costs,MasterCard Prepaid Management Services Ltd,PIN062051,3708
FCDO,CSC,22/12/2022,Bank Charges,Programme Costs,MasterCard Prepaid Management Services Ltd,PIN062051,997.95
FCDO,CSC,23/12/2022,Consulting Fees,System Development,J P Embleton Limited.,PIN062043,840
FCDO,CSC,22/12/2022,Scholar Stipend,Award Costs,MasterCard Prepaid Management Services Ltd,PIN062049,3708
FCDO,CSC,22/12/2022,Bank Charges,Programme Costs,MasterCard Prepaid Management Services Ltd,PIN062049,37.08
FCDO,CSC,05/12/2022,Secretariat Service Provision,Programme Costs,NatWestCC,PIN_CC,420.66
FCDO,CSC,09/12/2022,Scholar Stipend,Award Costs,Scholar,PRF000269,-4591.2
FCDO,CSC,15/12/2022,Bank Charges,Programme Costs,RBS,NOM0012??,38.6
FCDO,CSC,21/12/2022,Alumni Engagement,Programme Costs,Scholar,PIN_A-1-4,952.75
FCDO,CSC,21/12/2022,Secretariat Service Provision,Programme Costs,Amex,NOM_21/12,977.31
FCDO,CSC,21/12/2022,Alumni Engagement,Programme Costs,Scholar,PIN_A-1-4,1785.23
FCDO,CSC,30/12/2022,Bank Charges,Programme Costs,RBS,NOM_31/12,39.37
